{"text_format":"1","workbook":"xlsx","n_sheets":5,"sheets":["Ogólnouczelniane","Część III Opis przedmiotu zam.","Część III Oprogramowanie","Zał. 2 Formularz asort. ilość1","Zał. 2 Formularz asort. ilość2"],"not_rendered":{"charts":0,"images":30,"macros":0,"external_links":0,"defined_names":5,"comments":0,"pivot_tables":0},"unopened":[],"bounds":{"document_bytes":16777216,"sheet_cells":100000,"rows_first":2000,"rows_last":500,"rows_between":2000,"halvings":0,"cell_chars":16384,"cell_head_chars":4096},"cells_cut":0,"cells_raw":0,"read":"whole","date_system":"1900"}

{"sheet":"Ogólnouczelniane","index":0,"n_rows":39,"n_cols":25,"rows_kept":39,"cut":false,"hidden":false,"merged":[[3,1,38,1]]}
[]
[null,null,null,null,1,2,3,4,5,6,7,8,9,10,11,12,13,14,15,16,17,18,19,20]
[null,null,"Ogólnouczelniane\ncz. I","Poz. opisu","Kwestura","Sekcja Informatyki","Instytut Prawa i Administracji","SPNJO","Katedra Pielęgniarstwa i Ratownictwa Medycznego","Sekcja ds. WPL","Sekcja ds. Promocji","Instytut Zarządzania","Wydawnictwo","Kancelaria Ogólna","Instytut Nauk o Zdrowiu","Instytut Geografii","SKiSS","Instytut Biologii","Instytut Historii","Instytut Filologii","BOSiD","Katedra Neofilologii","Katedra Filologii Angielskiej","Biblioteka","ILOŚĆ RAZEM"]
[null,"CZĘŚĆ   I",{"$f":"'Część III Opis przedmiotu zam.'!D6","v":"Komputer stacjonarny ver. 1"},{"$f":"'Część III Opis przedmiotu zam.'!B7","v":"1.01"},2,null,null,18,null,6,null,22,null,1,1,null,null,null,null,null,2,null,null,4,{"$f":"SUM(E4:X4)","v":56}]
[null,null,{"$f":"'Część III Opis przedmiotu zam.'!D26","v":"Komputer stacjonarny ver. 2"},{"$f":"'Część III Opis przedmiotu zam.'!B27","v":"1.02"},null,3,1,null,1,null,1,null,3,null,null,null,null,null,null,null,null,2,null,null,11]
[null,null,{"$f":"'Część III Opis przedmiotu zam.'!D46","v":"Komputer stacjonarny ver. 3"},{"$f":"'Część III Opis przedmiotu zam.'!B47","v":1.03},null,4,null,null,null,null,null,null,null,null,null,null,null,null,null,null,null,null,null,null,4]
[null,null,{"$f":"'Część III Opis przedmiotu zam.'!D64","v":"Monitor ver. 1"},{"$f":"'Część III Opis przedmiotu zam.'!B65","v":1.04},4,null,1,18,1,6,null,23,2,1,1,null,null,1,null,null,2,null,null,4,64]
[null,null,{"$f":"'Część III Opis przedmiotu zam.'!D78","v":"Monitor ver. 2"},{"$f":"'Część III Opis przedmiotu zam.'!B79","v":1.05},null,3,null,null,null,null,1,null,null,null,null,null,null,null,null,null,null,2,null,null,6]
[null,null,{"$f":"'Część III Opis przedmiotu zam.'!D93","v":"Laptop ver. 1"},{"$f":"'Część III Opis przedmiotu zam.'!B94","v":1.06},null,null,null,3,null,null,null,null,null,null,null,null,null,null,null,null,null,null,null,null,3]
[null,null,{"$f":"'Część III Opis przedmiotu zam.'!D123","v":"Laptop ver. 2"},{"$f":"'Część III Opis przedmiotu zam.'!B124","v":1.07},3,1,null,null,null,null,2,null,null,1,null,1,null,null,null,null,null,null,null,null,8]
[null,null,{"$f":"'Część III Opis przedmiotu zam.'!D153","v":"Laptop ver. 3"},{"$f":"'Część III Opis przedmiotu zam.'!B154","v":1.08},2,null,4,null,null,null,null,null,null,null,null,null,null,null,null,null,null,null,null,null,6]
[null,null,{"$f":"'Część III Opis przedmiotu zam.'!D180","v":"Zestaw przejściówek sygnałowych wideo"},{"$f":"'Część III Opis przedmiotu zam.'!B181","v":"1.09"},null,null,null,null,null,null,null,null,null,null,null,null,null,null,null,null,null,null,1,null,1]
[null,null,{"$f":"'Część III Opis przedmiotu zam.'!D188","v":"Głośniki do komputera "},{"$f":"'Część III Opis przedmiotu zam.'!B189","v":"1.10"},null,null,null,null,null,null,null,null,null,null,null,null,null,null,null,null,null,null,2,null,2]
[null,null,{"$f":"'Część III Opis przedmiotu zam.'!D195","v":"Zewnętrzny dysk twardy"},{"$f":"'Część III Opis przedmiotu zam.'!B196","v":"1.11"},null,null,null,null,null,null,null,null,null,null,null,null,null,null,null,1,null,null,null,null,1]
[null,null,{"$f":"'Część III Opis przedmiotu zam.'!D210","v":"Urządzenie wielofunkcyjne atramentowe"},{"$f":"'Część III Opis przedmiotu zam.'!B211","v":1.1200000000000001},null,null,null,null,null,null,null,null,null,null,null,null,null,1,null,null,null,null,null,null,1]
[null,null,{"$f":"'Część III Opis przedmiotu zam.'!D244","v":"Pióro (rysik) do Surface 9 Pro"},{"$f":"'Część III Opis przedmiotu zam.'!B245","v":1.1299999999999999},null,3,null,null,null,null,null,null,null,null,null,null,null,null,null,null,null,null,null,null,3]
[null,null,{"$f":"'Część III Opis przedmiotu zam.'!D254","v":"Zewnętrzny dysk SSD"},{"$f":"'Część III Opis przedmiotu zam.'!B255","v":1.1399999999999999},null,4,null,null,null,null,null,null,null,null,null,null,null,null,null,null,null,null,null,null,4]
[null,null,{"$f":"'Część III Opis przedmiotu zam.'!D266","v":"Kamera internetowa USB z mikrofonem "},{"$f":"'Część III Opis przedmiotu zam.'!B267","v":1.1499999999999999},null,null,null,null,null,null,null,16,null,null,null,null,null,null,null,null,null,null,null,null,16]
[null,null,{"$f":"'Część III Opis przedmiotu zam.'!D277","v":"Urządzenie wielofunkcyjne laserowe"},{"$f":"'Część III Opis przedmiotu zam.'!B278","v":1.1599999999999999},2,1,null,null,null,null,null,null,null,null,1,null,1,1,null,null,null,null,null,2,8]
[null,null,{"$f":"'Część III Opis przedmiotu zam.'!D297","v":"Głosniki Bluetooth"},{"$f":"'Część III Opis przedmiotu zam.'!B298","v":1.17},null,null,null,null,null,null,null,16,null,null,null,null,null,null,null,null,null,null,null,null,16]
[null,null,{"$f":"'Część III Opis przedmiotu zam.'!D305","v":"Switch rack zarządzalny"},{"$f":"'Część III Opis przedmiotu zam.'!B306","v":"1.18"},null,4,null,null,null,null,null,null,null,null,null,null,null,null,null,null,null,null,null,null,4]
[null,null,{"$f":"'Część III Opis przedmiotu zam.'!D316","v":"Klawiatura i myszka bezprzewodowa"},{"$f":"'Część III Opis przedmiotu zam.'!B317","v":1.19},null,4,null,1,null,null,null,null,null,null,null,null,null,null,null,null,null,null,null,null,5]
[null,null,{"$f":"'Część III Opis przedmiotu zam.'!D334","v":"Pakiet oprogramowania biurowego"},{"$f":"'Część III Opis przedmiotu zam.'!B335","v":"1.20"},null,null,null,null,null,null,null,null,null,null,null,null,null,null,1,1,null,null,null,null,2]
[null,null,{"$f":"'Część III Opis przedmiotu zam.'!D337","v":"Słuchawki dokanałowe (douszne)"},{"$f":"'Część III Opis przedmiotu zam.'!B338","v":"1.21"},null,4,null,null,null,null,null,null,null,null,null,null,null,null,null,null,null,null,null,null,4]
[null,null,{"$f":"'Część III Opis przedmiotu zam.'!D371","v":"Dysk SSD 1TB"},{"$f":"'Część III Opis przedmiotu zam.'!B372","v":1.22},null,6,null,null,4,null,null,null,null,null,null,null,null,null,null,null,null,null,null,null,10]
[null,null,{"$f":"'Część III Opis przedmiotu zam.'!D380","v":"Zasilacz ATX"},{"$f":"'Część III Opis przedmiotu zam.'!B381","v":1.23},null,4,null,null,null,null,null,null,null,null,null,null,null,null,null,null,null,null,null,null,4]
[null,null,{"$f":"'Część III Opis przedmiotu zam.'!D396","v":"Pamięć DDR5 SODIMM "},{"$f":"'Część III Opis przedmiotu zam.'!B397","v":1.24},null,4,null,null,null,null,null,null,null,null,null,null,null,null,null,null,null,null,null,null,4]
[null,null,{"$f":"'Część III Opis przedmiotu zam.'!D406","v":"Projektor ver. 1"},{"$f":"'Część III Opis przedmiotu zam.'!B407","v":1.25},null,null,null,1,null,7,null,null,null,null,null,null,null,null,null,null,null,null,null,null,8]
[null,null,{"$f":"'Część III Opis przedmiotu zam.'!D428","v":"Dysk SSD 1000 GB (1TB) M.2 "},{"$f":"'Część III Opis przedmiotu zam.'!B429","v":1.26},null,4,null,null,null,null,null,null,null,null,null,null,null,null,null,null,null,null,null,null,4]
[null,null,{"$f":"'Część III Opis przedmiotu zam.'!D439","v":"Projektor multimedialny ver. 2 krótkoogniskowy"},{"$f":"'Część III Opis przedmiotu zam.'!B440","v":"1.27"},null,null,null,null,null,4,null,null,null,null,null,null,null,null,null,null,null,null,null,null,4]
[null,null,{"$f":"'Część III Opis przedmiotu zam.'!D456","v":"Pamięć RAM DDR4"},{"$f":"'Część III Opis przedmiotu zam.'!B457","v":1.28},null,4,null,null,null,null,null,null,null,null,null,null,null,null,null,null,null,null,null,null,4]
[null,null,{"$f":"'Część III Opis przedmiotu zam.'!D468","v":"System operacyjny"},{"$f":"'Część III Opis przedmiotu zam.'!B469","v":1.29},null,4,null,null,null,null,null,null,null,null,null,null,null,null,null,null,null,null,null,null,4]
[null,null,{"$f":"'Część III Opis przedmiotu zam.'!D475","v":"Ekran ścienny 4:3"},{"$f":"'Część III Opis przedmiotu zam.'!B476","v":"1.30"},null,null,null,null,2,3,null,null,null,null,null,null,null,null,null,null,null,null,null,null,5]
[null,null,{"$f":"'Część III Opis przedmiotu zam.'!D484","v":"Słuchawki przewodowe nauszne z mikrofonem"},{"$f":"'Część III Opis przedmiotu zam.'!B485","v":"1.31"},null,null,null,20,null,null,null,16,null,null,null,null,null,null,null,null,null,null,null,null,{"$f":"SUM(E34:X34)","v":36}]
[null,null,{"$f":"'Część III Opis przedmiotu zam.'!D506","v":"Switch biurkowy zarządzalny"},{"$f":"'Część III Opis przedmiotu zam.'!B507","v":1.32},null,8,null,null,null,null,null,null,null,null,null,null,null,null,null,null,null,null,null,null,8]
[null,null,{"$f":"'Część III Opis przedmiotu zam.'!D520","v":"Monitor interaktywny z montażem nasciennym"},{"$f":"'Część III Opis przedmiotu zam.'!B521","v":1.33},null,null,null,null,null,null,null,1,null,null,null,null,null,null,null,null,null,null,null,null,1]
[null,null,{"$f":"'Część III Opis przedmiotu zam.'!D547","v":"Telewizor z montażem naściennym"},{"$f":"'Część III Opis przedmiotu zam.'!B548","v":"1.34"},null,1,null,null,null,null,null,null,null,null,null,null,null,null,null,null,null,null,null,null,1]
[null,null,{"$f":"'Część III Opis przedmiotu zam.'!D571","v":"Bezprzewodowy transmiter obrazu "},{"$f":"'Część III Opis przedmiotu zam.'!B572","v":"1.35"},null,4,null,null,null,null,null,null,null,null,null,null,null,null,null,null,null,null,null,null,4]
[null,null,{"$f":"'Część III Opis przedmiotu zam.'!$D$581","v":"Switch  zarządzalny ver 2"},{"$f":"'Część III Opis przedmiotu zam.'!$B$582","v":1.36},null,null,null,null,1,null,null,null,null,null,null,null,null,null,null,null,null,null,null,null,1]

{"sheet":"Część III Opis przedmiotu zam.","index":1,"n_rows":777,"n_cols":6,"rows_kept":777,"cut":false,"hidden":false,"merged":[[19,2,20,2],[39,2,40,2],[618,3,618,5],[32,2,33,2],[636,2,636,3],[279,2,280,2],[329,2,330,2],[211,2,212,2],[213,2,217,2],[218,2,219,2],[234,2,236,2],[239,2,240,2],[442,2,453,2],[413,2,417,2],[347,2,349,2],[582,2,586,2],[589,2,590,2],[593,2,596,2],[574,2,576,2],[351,2,364,2],[776,2,776,3],[731,2,731,3],[702,2,702,3],[723,2,723,3],[679,2,679,3],[721,2,721,3],[717,2,717,3],[693,2,693,3],[692,2,692,3],[682,2,682,3],[683,2,683,3],[681,2,681,3],[715,2,715,3],[688,2,688,3],[678,1,678,3],[656,2,656,3],[94,2,95,2],[103,2,105,2],[133,2,135,2],[137,2,139,2],[320,2,321,2],[317,2,318,2],[562,2,567,2],[388,2,392,2],[382,2,386,2],[190,2,191,2],[657,2,657,3],[629,1,629,3],[647,2,647,3],[419,2,420,2],[2,1,2,5],[496,2,499,2],[485,2,486,2],[298,2,299,2],[281,2,284,2],[290,2,292,2],[82,2,84,2],[86,2,88,2],[89,2,90,2],[421,2,425,2],[198,2,200,2],[201,2,202,2],[68,2,69,2],[71,2,73,2],[140,2,144,2],[74,2,75,2],[154,2,155,2],[115,2,118,2],[124,2,125,2],[107,2,109,2],[110,2,114,2],[367,2,368,2],[345,2,346,2],[163,2,165,2],[167,2,168,2],[169,2,172,2],[173,2,175,2]]}
[null,"Część III Opis przedmiotu zamówienia "]
[]
[null,"Jeżeli w opisie przedmiotu zamówienia wskazano jakikolwiek znak towarowy, patent czy pochodzenie, należy przyjąć, że wskazane patenty, znaki towarowe, pochodzenie określają parametry techniczne, eksploatacyjne, użytkowe, co oznacza, że Zamawiający dopuszcza złożenie oferty w tej części przedmiotu zamówienia o równoważnych parametrach technicznych, eksploatacyjnych i użytkowych. W celu umożliwienia Zamawiającemu odpowiedniej weryfikacji zaoferowanego sprzętu lub oprogramowania pod kątem minimalnych wymagań należy podać dokładną nazwę producenta, model, procesor, nr katalogowy itp. Nie poduszcza się wpisania wyrażeń typu: spełnia, spełniający minimalne wymagania itd.  Wszystkie opisane parametry wymagane są wymaganiami minimalnymi. Zamawiający akceptuje rozwiązania o parametrach równoważnych lub lepszych, bez utraty funkcjonalności i wydajności."]
[]
[null,"Poz.",null,"Opis Zamawiającego","Opis Wykonawcy \n(producent i model, procesor i inne parametry )","Zdjęcie poglądowe"]
[null,null,null,"Komputer stacjonarny ver. 1"]
[null,"1.01","Typ: ","Komputer do obróbki tekstu, wprowadzania danych i pracy w pracowniach IT"]
[null,null,"Procesor:"," - zgodny z architekturą x86 i x64\n - Procesor osiągający w teście PassMark CPU Mark wynik \n    min. 19400 punktów Zamawiający będzie weryfikował ten parametr na podstawie \n    danych z drugiej kolumny tabeli z wynikami testów procesorów, które są załącznikiem \n    do SIWZ \n - Procesor musi obsługiwać 64 bitowe systemy "]
[null,null,"Ilość rdzeni:"," min. 6"]
[null,null,"Pamięć:","a) Min 16 GB DDR4 w jednym module \nb) Możliwość rozbudowy do min 64GB.\nc) Min Jeden slot DIMM wolny. "]
[null,null,"Napęd  optyczny: ","DVD+/-RW"]
[null,null,"Dysk: ","Min. 512 GB SSD M.2 PCIe Gen3 x4 NVMe"]
[null,null,"Karta graficzna: ","Zintegrowana z płytą główną, pozwalająca na osiągniecie rozdzielczości min. 4096 x 2160, umożliwiająca osiągniecie w teście PassMark 3GD Mark wyniku średniego min. 1600 punktów wg strony: https://www.videocardbenchmark.net, złącza 1xDSUB, 1xDP, 1xDVI-D, 1xHDMI, umożliwiająca pracę dwumoniotorową"]
[null,null,"Karta dźwiękowa:","dowolna, wej. mikrofonowe, wyj. słuchawkowe/ głośnikowe, wej. Liniowe"]
[null,null,"Komunikacja:","Zintegrowana z płytą główną, o prędkości 10/100/1000Mb/s. Dodatkowo karta sieciowa PCI-E WiFi 6, bluetooth 5.2"]
[null,null,"Interface:","Komputer wyposażony w następujące gniazda na przednim panelu obudowy\n   - 2 gniazda USB 3.2\n   - 2 gniazda USB 2.0\n   - 1 uniwersalne gniazdo do przyłączenia słuchawek i mikrofonu;"]
[null,null,"Rodzaje wejść / wyjść:","min. HDMI, RJ45, wyj. słuchawkowe, wej. mikrofonowe, wej. audio liniowe, USB, DisplayPort"]
[null,null,"BIOS"," - BIOS zgodny ze specyfikacją UEFI\n - Możliwość, bez uruchamiania systemu operacyjnego z dysku twardego komputera lub innych podłączonych do niego urządzeń zewnętrznych odczytania z BIOS informacji o: \n      *  wersji BIOS, \n      * nr seryjnym komputera wraz z datą kompilacji BIOS, \n      * ilości i sposobu obłożenia slotów pamięciami RAM, \n      *  typie procesora wraz z informacją o ilości rdzeni, \n      *  pojemności zainstalowanego dysku twardego\n      *  rodzajach napędów optycznych\n      *  MAC adresie zintegrowanej karty sieciowej\n      * kontrolerze audio\n  - Funkcja blokowania wejścia do  BIOS oraz blokowania startu systemu operacyjnego, (gwarantujący utrzymanie zapisanego hasła nawet w przypadku odłączenia wszystkich źródeł zasilania i podtrzymania BIOS)\n  - Funkcja blokowania/odblokowania BOOT-owania stacji roboczej z zewnętrznych urządzeń  \n  - Możliwość polegająca na kontrolowaniu urządzeń wykorzystujących magistralę komunikacyjną PCI, bez uruchamiania systemu operacyjnego z dysku twardego komputera lub innych podłączonych do niego urządzeń zewnętrznych. Pod pojęciem kontroli Zamawiający rozumie funkcjonalność polegającą na blokowaniu/odblokowaniu slotów PCI.\n  - Możliwość, bez uruchamiania systemu operacyjnego z dysku twardego komputera lub innych, podłączonych do niego urządzeń zewnętrznych,  ustawienia hasła na poziomie systemu, administratora oraz dysku twardego oraz możliwość ustawienia następujących zależności pomiędzy nimi: brak możliwości zmiany hasła pozwalającego na uruchomienie systemu bez podania hasła administratora.\n - Możliwość włączenia/wyłączenia zintegrowanej karty dźwiękowej, karty sieciowej, portu równoległego, portu szeregowego z poziomu BIOS, bez uruchamiania systemu operacyjnego z dysku twardego komputera lub innych, podłączonych do niego, urządzeń zewnętrznych.\n - Możliwość założenie szyfrowanego hasła na dysk SSD (funkcja działająca osobno i niezależnie od haseł administratora/użytkownika UEFI) oparte o standard AES256\n - Możliwość ustawienia portów USB w trybie „no BOOT”, czyli podczas startu komputer nie wykrywa urządzeń bootujących typu USB, natomiast po uruchomieniu systemu operacyjnego porty USB są aktywne.\n - Możliwość selektywnego wyłączania podedynczych portów USB"]
[null,null,"Dod. informacje:","klawiatura USB QWERTY i  mysz optyczna producenta zestawu komputerowego, \nKażdy komputer powinien być oznaczony indywidualnym numerem seryjnym umieszonym na obudowie, oraz musi być wpisany na stałe w BIOS"]
[null,null,"Standardy i\ncertyfikaty","Certyfikat PN-EN ISO 9001:2015, PN-EN ISO14001:2015 oraz PN-ISO/IEC 27001:2014 lub nowsze na procesy projektowania, produkcję, sprzedaż i serwis,\nCertyfikat PN-EN ISO 50001:2018 \nCertyfikat TCO 08 - parametr oceniany \nWYMIENIĆ POSIADANE CERTYFIKATY W KOLUMNIE OPIS WYKONAWCY \nCertyfikaty wymagane do złożenia wraz z ofertą"]
[null,null,null,"Oferowany komputer musi znajdować się na liście „Windows Hardware Compatibility List”. \nKomputer musi być certyfikowany na zgodność z systemem operacyjnym  MS Windows 11 – x64\nOznaczenie CE"]
[null,null,"Wsparcie techniczne","Dedykowany portal techniczny producenta, umożliwiający Zamawiającemu zgłaszanie awarii możliwość sprawdzenia kompletnych danych o urządzeniu na jednej witrynie internetowej prowadzonej przez producenta – załączyć zrzut witryny producenta komputera z niniejszą funkcjonalnością."]
[null,null,"Pakiet oprogramowania biurowego","Rozszerzenie posiadanej i wykorzystywanej przez zamawiającego licencji na pakiet oprogramowania biurowego  \"MS Office Professional Plus 2019 EDU dla szkół i Uczelni lub oprogramowanie równorzędne. Licencja wieczysta (dożywotnia).  \nTenant do office:  officeapsl.onmicrosoft.com\n\nWymogi równorzedności zostały opisane w \"Przypisie 2\""]
[null,null,"System: ","Preinstalowany system operacyjny ver. 1,  klasy PC musi spełniać  wymagania według poniższego załącznika  (przypis 1) poprzez wbudowane mechanizmy, bez użycia dodatkowych aplikacji (np. Windows 11  prof. lub równoważny wg opisu )  w celu zapewnienia współpracy ze środowiskiem sieciowym oraz aplikacjami funkcjonującymi w środowisku Uczelni. Nie dopuszcza się w tym zakresie licencji pochodzącym z rynku wtórnego. Klucz licencyjny Windows 11 Professional lub równoważny musi być zapisany trwale w BIOS"]
[]
[null,null,null,"Komputer stacjonarny ver. 2"]
[null,"1.02","Typ: ","komputer stacjonarny do pracowni multimedialnej"]
[null,null,"Procesor:"," - zgodny z architekturą x86 i x64\n - Procesor osiągający w teście PassMark CPU Mark wynik \n    min. 32000 punktów Zamawiający będzie weryfikował ten parametr na podstawie \n    danych z drugiej kolumny tabeli z wynikami testów procesorów, które są załącznikiem \n    do SIWZ \n - Procesor musi obsługiwać 64 bitowe systemy "]
[null,null,"Ilość rdzeni:"," min. 12"]
[null,null,"Pamięć:","a) Min 32GB DDR5 min. 4000MHz.\nb) Możliwość rozbudowy do min 128GB.\nc) Min dwa sloty DIMM wolny."]
[null,null,"Napęd  optyczny: ","DVD+/-RW (możliwa jest dostawa napędu zewnetrznego USB)"]
[null,null,"Dysk: ","Min. 1024 GB SSD M.2 PCIe NVMe"]
[null,null,"Karta graficzna: ","Zintegrowana z płytą główną, pozwalająca na osiągniecie rozdzielczości min. 4096 x 2160, umożliwiająca osiągniecie w teście PassMark 3GD Mark wyniku średniego min. 1600 punktów wg strony: https://www.videocardbenchmark.net, złącza 2 x DisplayPort, 1 x HDMI, 1 x D-Sub, umożliwiająca pracę dwumoniotorową"]
[null,null,null,"Niezintegrowana, z obsługą dekodowania sprzętowego VP9 i HEVC\nObsługiwana przez DirectX w wersji co najmniej 12 i OpenGL w wersji co najmniej 4\nKarta graficzna musi osiągać w teście Passmark G3D Mark, w kategorii Average G3D Mark wynik co najmniej 19500 pkt. według wyników opublikowanych na stronie https://www.videocardbenchmark.net/gpu_list.php"]
[null,null,"Karta dźwiękowa:","dowolna, wej. mikrofonowe, wyj. słuchawkowe/ głośnikowe, wej. Liniowe"]
[null,null,"Komunikacja:","Zintegrowana z płytą główną, o prędkości 10/100/1000Mb/s. Dodatkowo karta sieciowa PCI-E WiFi 6, bluetooth 5.2"]
[null,null,"Rodzaje wejść / wyjść:","min. HDMI, RJ45, wyj. słuchawkowe, wej. mikrofonowe, wej. audio liniowe, USB, DisplayPort"]
[null,null,"Dod. funkcjonalność:","klawiatura USB QWERTY i  mysz optyczna producenta zestawu komputerowego, \nKażdy komputer powinien być oznaczony indywidualnym numerem seryjnym umieszonym na obudowie, oraz musi być wpisany na stałe w BIOS"]
[null,null,"BIOS"," - BIOS zgodny ze specyfikacją UEFI\n - Możliwość, bez uruchamiania systemu operacyjnego z dysku twardego komputera lub innych podłączonych do niego urządzeń zewnętrznych odczytania z BIOS informacji o: \n      *  wersji BIOS, \n      * nr seryjnym komputera wraz z datą kompilacji BIOS, \n      * ilości i sposobu obłożenia slotów pamięciami RAM, \n      *  typie procesora wraz z informacją o ilości rdzeni, \n      *  pojemności zainstalowanego dysku twardego\n      *  rodzajach napędów optycznych\n      *  MAC adresie zintegrowanej karty sieciowej\n      * kontrolerze audio\n  - Funkcja blokowania wejścia do  BIOS oraz blokowania startu systemu operacyjnego, (gwarantujący utrzymanie zapisanego hasła nawet w przypadku odłączenia wszystkich źródeł zasilania i podtrzymania BIOS)\n  - Funkcja blokowania/odblokowania BOOT-owania stacji roboczej z zewnętrznych urządzeń  \n  - Możliwość polegająca na kontrolowaniu urządzeń wykorzystujących magistralę komunikacyjną PCI, bez uruchamiania systemu operacyjnego z dysku twardego komputera lub innych podłączonych do niego urządzeń zewnętrznych. Pod pojęciem kontroli Zamawiający rozumie funkcjonalność polegającą na blokowaniu/odblokowaniu slotów PCI.\n  - Możliwość, bez uruchamiania systemu operacyjnego z dysku twardego komputera lub innych, podłączonych do niego urządzeń zewnętrznych,  ustawienia hasła na poziomie systemu, administratora oraz dysku twardego oraz możliwość ustawienia następujących zależności pomiędzy nimi: brak możliwości zmiany hasła pozwalającego na uruchomienie systemu bez podania hasła administratora.\n - Możliwość włączenia/wyłączenia zintegrowanej karty dźwiękowej, karty sieciowej, portu równoległego, portu szeregowego z poziomu BIOS, bez uruchamiania systemu operacyjnego z dysku twardego komputera lub innych, podłączonych do niego, urządzeń zewnętrznych.\n - Możliwość założenie szyfrowanego hasła na dysk SSD (funkcja działająca osobno i niezależnie od haseł administratora/użytkownika UEFI) oparte o standard AES256\n - Możliwość ustawienia portów USB w trybie „no BOOT”, czyli podczas startu komputer nie wykrywa urządzeń bootujących typu USB, natomiast po uruchomieniu systemu operacyjnego porty USB są aktywne.\n - Możliwość selektywnego wyłączania podedynczych portów USB"]
[null,null,"Standardy i\ncertyfikaty","Certyfikat PN-EN ISO 9001:2015, PN-EN ISO14001:2015 oraz PN-ISO/IEC 27001:2014 lub nowsze na procesy projektowania, produkcję, sprzedaż i serwis,\nCertyfikat PN-EN ISO 50001:2018 \nCertyfikat TCO 08- parametr oceniany\nWYMIENIĆ POSIADANE CERTYFIKATY W KOLUMNIE OPIS WYKONAWCY \nCertyfikaty wymagane do złożenia wraz z ofertą"]
[null,null,null,"Oferowany komputer musi znajdować się na liście „Windows Hardware Compatibility List”. \nKomputer musi być certyfikowany na zgodność z systemem operacyjnym  MS Windows 11 – x64\nOznaczenie CE"]
[null,null,"Wsparcie techniczne","Dedykowany portal techniczny producenta, umożliwiający Zamawiającemu zgłaszanie awarii oraz samodzielne zamawianie zamiennych komponentów. Możliwość sprawdzenia kompletnych danych o urządzeniu na jednej witrynie internetowej prowadzonej przez producenta (automatyczna identyfikacja komputera, konfiguracja fabryczna, konfiguracja bieżąca, Rodzaj gwarancji, data wygaśnięcia gwarancji, data produkcji komputera, aktualizacje, diagnostyka, dedykowane oprogramowanie, tworzenie dysku recovery systemu operacyjnego). Wykonawca poda adres strony oraz sposób realizacji wymagania (opis uzyskania w/w informacji)."]
[null,null,"Pakiet oprogramowania biurowego","Rozszerzenie posiadanej i wykorzystywanej przez zamawiającego licencji na pakiet oprogramowania biurowego  \"MS Office Professional Plus 2019 EDU dla szkół i Uczelni lub oprogramowanie równorzędne. Licencja wieczysta (dożywotnia).  \nTenant do office:  officeapsl.onmicrosoft.com\n\nWymogi równorzedności zostały opisane w \"Przypisie 2\""]
[null,null,"System: ","Preinstalowany system operacyjny ver. 1,  klasy PC musi spełniać  wymagania według poniższego załącznika  (przypis 1) poprzez wbudowane mechanizmy, bez użycia dodatkowych aplikacji (np. Windows 11  prof. lub równoważny wg opisu )  w celu zapewnienia współpracy ze środowiskiem sieciowym oraz aplikacjami funkcjonującymi w środowisku Uczelni. Nie dopuszcza się w tym zakresie licencji pochodzącym z rynku wtórnego. Klucz licencyjny Windows 11 Professional lub równoważny musi być zapisany trwale w BIOS"]
[]
[null,null,null,"Komputer stacjonarny ver. 3"]
[null,1.03,"Typ: ","komputer stacjonarny w minimalistycznej obudowie miniPC"]
[null,null,"Procesor:"," - zgodny z architekturą x86 i x64\n - Procesor osiągający w teście PassMark CPU Mark wynik \n    min. 11000 punktów Zamawiający będzie weryfikował ten parametr na podstawie \n    danych z drugiej kolumny tabeli z wynikami testów procesorów, które są załącznikiem \n    do SIWZ \n - Procesor musi obsługiwać 64 bitowe systemy "]
[null,null,"Ilość rdzeni:"," min. 6"]
[null,null,"Pamięć:","Min 32GB DDR5"]
[null,null,"Napęd  optyczny: ","brak"]
[null,null,"Dysk: ","Min. 1 TB SSD M.2 PCIe NVMe"]
[null,null,"Karta graficzna: ","zintegrowana, umożliwiająca pracę dwumoniotorową"]
[null,null,"Karta dźwiękowa:","dowolna, wej. mikrofonowe, wyj. słuchawkowe/ głośnikowe, wej. Liniowe"]
[null,null,"Komunikacja:","Zintegrowana z płytą główną, o prędkości 10/100/1000Mb/s. Dodatkowo karta sieciowa  WiFi  (może być zewnętrzna)"]
[null,null,"Rodzaje wejść / wyjść:","min. HDMI, RJ45, wyj. słuchawkowe, wej. mikrofonowe, wej. audio liniowe, USB"]
[null,null,"Wymiary","ok. 14,5 CM (SZER.) X 12,8 CM (WYS.) X 5,3 CM (GRUB.)"]
[null,null,"Dod. funkcjonalność:","klawiatura USB QWERTY i  mysz optyczna producenta zestawu komputerowego, "]
[null,null,"Standardy i\ncertyfikaty","Certyfikat PN-EN ISO 9001:2015, PN-EN ISO14001:2015 oraz PN-ISO/IEC 27001:2014 lub nowsze na procesy projektowania, produkcję, sprzedaż i serwis,\nCertyfikat PN-EN ISO 50001:2018 \nOznaczenie CE\nWYMIENIĆ POSIADANE CERTYFIKATY W KOLUMNIE OPIS WYKONAWCY.\nCertyfikaty wymagane do złożenia wraz z ofertą."]
[null,null,"Wsparcie techniczne","Dedykowany portal techniczny producenta, umożliwiający Zamawiającemu zgłaszanie awarii oraz samodzielne zamawianie zamiennych komponentów. Możliwość sprawdzenia kompletnych danych o urządzeniu na jednej witrynie internetowej prowadzonej przez producenta (automatyczna identyfikacja komputera, konfiguracja fabryczna, konfiguracja bieżąca, Rodzaj gwarancji, data wygaśnięcia gwarancji, data produkcji komputera, aktualizacje, diagnostyka, dedykowane oprogramowanie, tworzenie dysku recovery systemu operacyjnego). Wykonawca poda adres strony oraz sposób realizacji wymagania (opis uzyskania w/w informacji)."]
[null,null,"Pakiet oprogramowania biurowego","Rozszerzenie posiadanej i wykorzystywanej przez zamawiającego licencji na pakiet oprogramowania biurowego  \"MS Office Professional Plus 2019 EDU dla szkół i Uczelni lub oprogramowanie równorzędne. Licencja wieczysta (dożywotnia).  \nTenant do office:  officeapsl.onmicrosoft.com\n\nWymogi równorzedności zostały opisane w \"Przypisie 2\""]
[null,null,"System: ","Preinstalowany system operacyjny ver. 1,  klasy PC musi spełniać  wymagania według poniższego załącznika  (przypis 1) poprzez wbudowane mechanizmy, bez użycia dodatkowych aplikacji (np. Windows 11  prof. lub równoważny wg opisu )  w celu zapewnienia współpracy ze środowiskiem sieciowym oraz aplikacjami funkcjonującymi w środowisku Uczelni. Nie dopuszcza się w tym zakresie licencji pochodzącym z rynku wtórnego. Klucz licencyjny Windows 11 Professional lub równoważny musi być zapisany trwale w BIOS"]
[]
[null,null,null,"Monitor ver. 1"]
[null,1.04,"Przekątna ekranu","w przedziale  27\" - 28\"  "]
[null,null,"Powłoka matrycy","Matowa"]
[null,null,"Rodzaj matrycy","LED,IPS"]
[null,null,"Rozdzielczość ekranu","1920 x 1080 (FullHD)"]
[null,null,"Rodzaje wejść / wyjść (min.)","Wyjście audio - 1 szt."]
[null,null,null,"min. HDMI - 1 szt."]
[null,null,"Głośniki","Tak"]
[null,null,"Dodatkowe informacje","Możliwość montażu na ścianie - VESA"]
[null,null,null,"kolor obudowy: czarny"]
[null,null,null,"Regulacja kąta pochylenia (Tilt)"]
[null,null,"Inne","Otwory montażowe w obudowie VESA "]
[null,null,null,"Komplet kabli: graficzne ( HDMI), zasilające, audio"]
[]
[null,null,null,"Monitor ver. 2"]
[null,1.05,"Przekątna ekranu","w przedziale  30\" - 32\""]
[null,null,"Powłoka matrycy","Matowa"]
[null,null,"Rodzaj matrycy","LED, IPS"]
[null,null,"Rozdzielczość ekranu","min. 3840 x 2160 (4K)"]
[null,null,"Rodzaje wejść / wyjść (min.)","Wyjście audio - 1 szt."]
[null,null,null,"min. HDMI - 1 szt."]
[null,null,null,"min.DisplayPort 1.2 - 1  szt. "]
[null,null,"Głośniki","Tak"]
[null,null,"Dodatkowe informacje","Możliwość montażu na ścianie - VESA"]
[null,null,null,"kolor obudowy: czarny"]
[null,null,null,"Regulacja kąta pochylenia (Tilt)"]
[null,null,"Inne","Otwory montażowe w obudowie VESA "]
[null,null,null,"Komplet kabli: graficzne ( HDMI, DP ), zasilające, audio"]
[]
[null,null,null,"Laptop ver. 1"]
[null,1.06,"typ","Komputer przenośny typu  laptop. Przeznaczony dla potrzeb pracy na programach graficznych, aplikacji biurowych, aplikacji edukacyjnych, aplikacji obliczeniowych, dostępu do Internetu oraz poczty elektronicznej, jako lokalna baza danych, stacja programistyczna.\nUrządzenie klasy biznes."]
[null,null,"Procesor"," - zgodny z architekturą x86 i x64"]
[null,null,null," - osiągający, co najmniej 13000 punktów w teście wydajnościowym PassMark CPU Benchmarks wg. kolumny Passmark CPU Mark, Zamawiający będzie weryfikował ten parametr na podstawie danych z drugiej kolumny tabeli z wynikami testów procesorów, które są załącznikiem do SIWZ"]
[null,null,"Pamięć RAM","min 16 GB "]
[null,null,"ilość rdzeni","min. 6"]
[null,null,"Dysk ","min. SSD 512 GB"]
[null,null,"Typ ekranu","Matowy, LED WVA lub IPS"]
[null,null,"Przekątna ekranu","15,6\""]
[null,null,"Rozdzielczość ekranu","min. 1920 x 1080 (FullHD)"]
[null,null,"Karta graficzna","zintegrowana z procesorem i obsługą dekodowania sprzętowego VP9 i HEVC"]
[null,null,"Dźwięk","Zintegrowana karta dźwiękowa zgodna z Intel High Definition Audio"]
[null,null,null,"Wbudowane dwa mikrofony"]
[null,null,null,"Wbudowane głośniki stereo"]
[null,null,"Kamera internetowa","min. 1.0 Mpix"]
[null,null,"Łączność","LAN 10/100/1000 Mbps - dopuszczalna jest karta zewnętrzna (przejściówka)"]
[null,null,null,"min. Wi-Fi 5"]
[null,null,null,"Moduł Bluetooth (ver. min. 5.0)"]
[null,null,"Rodzaje wejść / wyjść","min. USB 3.2 Gen.1"]
[null,null,null,"min. USB Typu-C"]
[null,null,null,"min. HDMI"]
[null,null,null,"min. USB 2.0 "]
[null,null,null,"Wyjście słuchawkowe/wejście mikrofonowe "]
[null,null,"dodatkowe wypos./funkc.","Torba, mysz bezprzewodowa (mała), "]
[null,null,null,"Kolor czarny lub szary"]
[null,null,null,"System zabezpieczenia przed kradzieżą"]
[null,null,null,"Wydzielona klawiatura numeryczna"]
[null,null,"Pakiet oprogramowania biurowego","Rozszerzenie posiadanej i wykorzystywanej przez zamawiającego licencji na pakiet oprogramowania biurowego  \"MS Office Professional Plus 2019 EDU dla szkół i Uczelni lub oprogramowanie równorzędne. Licencja wieczysta (dożywotnia).  \nTenant do office:  officeapsl.onmicrosoft.com\n\nWymogi równorzedności zostały opisane w \"Przypisie 2\""]
[null,null,"zainstalowany system operacyjny","Preinstalowany system operacyjny ver. 1,  klasy PC musi spełniać  wymagania według poniższego załącznika  (przypis 1) poprzez wbudowane mechanizmy, bez użycia dodatkowych aplikacji (np. Windows 11  prof. lub równoważny wg opisu )."]
[]
[null,null,null,"Laptop ver. 2"]
[null,1.07,"typ","Komputer przenośny typu  laptop. Przeznaczony dla edycji grafiki"]
[null,null,"Procesor"," - zgodny z architekturą x86 i x64"]
[null,null,null," - osiągający, co najmniej 17000 punktów w teście wydajnościowym PassMark CPU Benchmarks "]
[null,null,"Pamięć RAM","min. 16 GB "]
[null,null,"Dysk twardy","min. SSD 512 GB"]
[null,null,"Ilość rdzeni",6]
[null,null,"Typ ekranu","Matowy, LED WVA lub IPS"]
[null,null,"Przekątna ekranu","min. 15,6"]
[null,null,"Rozdzielczość ekranu","min. 1920 x 1080 (FHD)"]
[null,null,"Karta graficzna","zintegrowana z procesorem oraz druga dedykowana z obsługą dekodowania sprzętowego VP9 i HEVC"]
[null,null,"Dźwięk","Zintegrowana karta dźwiękowa"]
[null,null,null,"Wbudowany mikrofon"]
[null,null,null,"Wbudowane głośniki stereo"]
[null,null,"Kamera internetowa","min. 1.0 Mpix"]
[null,null,"Łączność","min. Wi-Fi 6"]
[null,null,null,"LAN 10/100 Mbps"]
[null,null,null,"Moduł Bluetooth"]
[null,null,"Rodzaje wejść / wyjść","HDMI"]
[null,null,null,"Wyjście słuchawkowe/wejście mikrofonowe "]
[null,null,null,"min. USB 2.0 - 1 szt."]
[null,null,null,"Czytnik kart pamięci"]
[null,null,null,"min. USB 3.2 Gen. 1 "]
[null,null,"Dodatkowe informacje","Wielodotykowy, intuicyjny touchpad"]
[null,null,null,"Podświetlenie klawiatury kolorem białym"]
[null,null,null,"Przejściówkaz portem HDMI i VGA"]
[null,null,null,"Torba, mysz bezprzewodowa (mała, zasilana z akumulatora i ładowana przez USB)"]
[null,null,"Pakiet oprogramowania biurowego","Rozszerzenie posiadanej i wykorzystywanej przez zamawiającego licencji na pakiet oprogramowania biurowego  \"MS Office Professional Plus 2019 EDU dla szkół i Uczelni lub oprogramowanie równorzędne. Licencja wieczysta (dożywotnia).  \nTenant do office:  officeapsl.onmicrosoft.com\n\nWymogi równorzedności zostały opisane w \"Przypisie 2\""]
[null,null,"zainstalowany system operacyjny","Preinstalowany system operacyjny ver. 1,  klasy PC musi spełniać  wymagania według poniższego załącznika  (przypis 1) poprzez wbudowane mechanizmy, bez użycia dodatkowych aplikacji (np. Windows 11  prof. lub równoważny wg opisu )."]
[]
[null,null,null,"Laptop ver. 3"]
[null,1.08,"typ","Komputer przenośny typu  laptop. Przeznaczony dla potrzeb pracy na programach graficznych, aplikacji biurowych, aplikacji edukacyjnych, aplikacji obliczeniowych, dostępu do Internetu oraz poczty elektronicznej."]
[null,null,"Procesor"," - zgodny z architekturą x86 i x64"]
[null,null,null," - osiągający, co najmniej 15000 punktów w teście wydajnościowym PassMark CPU Benchmarks wg. kolumny Passmark CPU Mark, Zamawiający będzie weryfikował ten parametr na podstawie danych z drugiej kolumny tabeli z wynikami testów procesorów, które są załącznikiem do SIWZ"]
[null,null,"Pamięć RAM","min 16 GB "]
[null,null,"ilość rdzeni","min. 8"]
[null,null,"Dysk ","min. SSD 512 GB"]
[null,null,"Typ ekranu","Dotykowy"]
[null,null,"Przekątna ekranu","14\""]
[null,null,"Rozdzielczość ekranu","min. 2880 x 1800"]
[null,null,"Karta graficzna","Dowolna"]
[null,null,"Dźwięk","Zintegrowana karta dźwiękowa"]
[null,null,null,"Wbudowane dwa mikrofony"]
[null,null,null,"Wbudowane głośniki stereo"]
[null,null,"Kamera internetowa","min. 1.0 Mpix"]
[null,null,"Łączność","Wi-Fi "]
[null,null,null,"Moduł Bluetooth (ver. min. 5.0)"]
[null,null,"Rodzaje wejść / wyjść","min. USB 3. Gen. 1"]
[null,null,null,"min. USB Typu-C (z DisplayPort i Power Delivery) "]
[null,null,null,"min. HDMI "]
[null,null,null,"Wyjście słuchawkowe/wejście mikrofonowe "]
[null,null,"dodatkowe wypos./funkc.","Torba, mysz bezprzewodowa, przejściówka HDMI -> VGA"]
[null,null,null,"Podświetlenie klawiatury kolorem białym"]
[null,null,null,"System zabezpieczenia przed kradzieżą"]
[null,null,"Pakiet oprogramowania biurowego","Rozszerzenie posiadanej i wykorzystywanej przez zamawiającego licencji na pakiet oprogramowania biurowego  \"MS Office Professional Plus 2019 EDU dla szkół i Uczelni lub oprogramowanie równorzędne. Licencja wieczysta (dożywotnia).  \nTenant do office:  officeapsl.onmicrosoft.com\n\nWymogi równorzedności zostały opisane w \"Przypisie 2\""]
[null,null,"zainstalowany system operacyjny","Preinstalowany system operacyjny ver. 1,  klasy PC musi spełniać  wymagania według poniższego załącznika  (przypis 1) poprzez wbudowane mechanizmy, bez użycia dodatkowych aplikacji (np. Windows 11  prof. lub równoważny wg opisu )."]
[]
[null,null,null,"Zestaw przejściówek sygnałowych wideo"]
[null,"1.09","1. Przejściówka HDMI - VGA","Typ: HDMI - VGA (D-sub)\nZastosowanie: Wideo\nZłącze 1: HDMI męskie\nZłącze 2: VGA (D-sub) żeńskie\nDługość: 15 cm"]
[null,null,"2. Przejściówka DP - VGA","Typ: DisplayPort - VGA\nZastosowanie: Wideo\nZłącze 1: DisplayPort męskie\nZłącze 2: VGA (D-sub) żeńskie\nDługość: 15 cm"]
[null,null,"3. rzejsciówka DVI - HDMI","Typ: HDMI - DVI\nZastosowanie: Wideo\nZłącza kątowe: Nie\nZłącze 1:  DVI-D 24+1-pin (Dual Link) męskie\nZłącze 2:  HDMI żeńskie\nPozłacane styki: Tak"]
[null,null,"4. Łącznik HDMI - HDMI","Typ: HDMI - HDMI\nZastosowanie: Audio, Wideo\nZłącze 1: HDMI żeńskie\nZłącze 2: HDMI żeńskie\nStandard: HDMI v2.0\nObsługiwana rozdzielczość:  4K (3840x2160, 60 kl./s)"]
[null,null,"5. mini HDMI - HDMI","Typ: mini HDMI - HDMI\nZastosowanie: Wideo\nZłącze 1: mini HDMI męskie\nZłącze 2: HDMI żeńskie"]
[null,null,"6.  Przejściówka MAC - VGA","Typ: MAC - VGA\nZastosowanie:  Wideo\nZłącze 1: USB 3.1 typ C\nZłącze 2: VGA (D-sub)  żeńskie\nObsługa dźwięku w HD\nMirror mode -klonowanie ekranu\nExtende mode - rozszerzenie ekranu\nDługość: ok 10 cm"]
[]
[null,null,null,"Głośniki do komputera "]
[null,"1.10","Rodzaj zestawu","2.0"]
[null,null,"Moc głośników (RMS)","min. 4 W"]
[null,null,"Rodzaje wyjść / wejść","Wyjście 3,5 mm minijack - 1 szt."]
[null,null,null,"USB - 1 szt."]
[null,null,"Sterowanie","Przyciski lub potencjometr na głośniku"]
[]
[null,null,null,"Zewnętrzny dysk twardy"]
[null,"1.11","Pojemność","5000 GB"]
[null,null,"Interfejs","USB 3.2 Gen. 1"]
[null,null,"Złącza","USB Micro-B"]
[null,null,"Dodatkowe informacje","Aluminiowa obudowa"]
[null,null,null,"Seagate Rescue Services (usługi odzyskiwania danych)"]
[null,null,null,"Automatyczna synchronizacja"]
[null,null,"Dołączone akcesoria","Kabel USB"]
[null,null,null,"Instrukcja obsługi"]
[null,null,"Kolor","Czarny"]
[null,null,"Wysokość","ok. 20,9 mm"]
[null,null,"Szerokość","ok. 79 mm"]
[null,null,"Głębokość","ok. 115,3 mm"]
[null,null,"Waga","ok. 126 g"]
[]
[null,null,null,"Urządzenie wielofunkcyjne atramentowe"]
[null,1.1200000000000001,"Technologia druku","Atramentowa, kolorowa"]
[null,null,"Obsługiwany typ nośnika","Papier zwykły"]
[null,null,null,"Papier fotograficzny"]
[null,null,"Obsługiwane formaty nośników","A4"]
[null,null,null,"A5"]
[null,null,null,"A6"]
[null,null,null,"DL"]
[null,null,null,"Formaty niestandardowe"]
[null,null,"Rodzaje podajników papieru","Kasetowy"]
[null,null,null,"Tacka"]
[null,null,"Podajnik papieru","150 arkuszy"]
[null,null,"Liczba podajników papieru",2]
[null,null,"Szybkość druku w kolorze","do 17 str./min"]
[null,null,"Szybkość druku w mono","do 16 str./min"]
[null,null,"Maksymalna rozdzielczość druku","6000 x 1200 dpi"]
[null,null,"Liczba wkładów drukujących",4]
[null,null,"System stałego zasilania atramentem (CISS)","Tak"]
[null,null,"Druk dwustronny (dupleks)","Automatyczny"]
[null,null,"Maksymalna rozdzielczość skanowania","2400 x 1200 dpi"]
[null,null,"Szybkość kopiowania","do 13 str./min"]
[null,null,"Szybkość skanowania","do 3,35 s"]
[null,null,"Podajnik dokumentów skanera","Tak (ADF)"]
[null,null,"Skanowanie bezpośrednio do e-mail","Tak"]
[null,null,"Wyświetlacz","Wbudowany"]
[null,null,"Interfejsy","USB"]
[null,null,null,"Wi-Fi"]
[null,null,null,"AirPrint"]
[null,null,"Wersja z WiFi","Tak"]
[null,null,"Dodatkowe informacje","Drukowanie bezpośrednio ze smartfonów i tabletów"]
[null,null,"Dołączone akcesoria","Kabel zasilający"]
[null,null,null,"Zestaw pełnych tuszów"]
[null,null,"Kolor","Czarny"]
[]
[null,null,null,"Pióro (rysik) do Surface 9 Pro"]
[null,1.1299999999999999,"Kompatybilność","Microsoft Surface Pro 9"]
[null,null,"Materiał","Plastik"]
[null,null,"Funkcje","Funkcje wykrywania nacisku"]
[null,null,"Przyciski funkcyjne",2]
[null,null,"Poziomy nacisku",4096]
[null,null,"Czas pracy na baterii","Do 15 h"]
[null,null,"Kolor","Czarny"]
[null,null,"Dodatkowe informacje","Dioda stanu naładowania"]
[]
[null,null,null,"Zewnętrzny dysk SSD"]
[null,1.1399999999999999,"Rodzaj dysku","zewnętrzny SSD "]
[null,null,"Pojemność","min. 1000 GB (1TB)"]
[null,null,"Interfejs","USB 3.2 Gen. 2 x 2"]
[null,null,"Złącza","USB Type-C"]
[null,null,"Dołączone akcesoria","Kabel USB-C"]
[null,null,null,"Kabel USB-C > USB-A"]
[null,null,"Wysokość","ok. 12,3 mm"]
[null,null,"Szerokość","ok. 35 mm"]
[null,null,"Głębokość","ok. 65 mm"]
[null,null,"Waga","ok. 31 g"]
[]
[null,null,null,"Kamera internetowa USB z mikrofonem "]
[null,1.1499999999999999,"Przeznaczenie","do nauki, dla biznesu"]
[null,null,"Funkcja aparatu cyfrowego","tak"]
[null,null,"Funkcja kamery internetowej","tak"]
[null,null,"Maks. rozdzielczość","min. 1920 x 1080 (FullHD | 30 FPS)"]
[null,null,"Interfejs","USB"]
[null,null,"Długość kabla","min. 1.5 m"]
[null,null,"Mikrofon","tak"]
[null,null,"Zasilanie","z urządzenia"]
[null,null,"Kolor","czarny"]
[]
[null,null,null,"Urządzenie wielofunkcyjne laserowe"]
[null,1.1599999999999999,"Technologia druku","Laserowa, monochromatyczna"]
[null,null,"funkcje","drukarka, skaner, kopiowanie"]
[null,null,"Min. obsługiwany \ntyp nośnika","Koperty"]
[null,null,null,"Papier zwykły"]
[null,null,"Obsługiwany format nośnika","Letter"]
[null,null,null,"A6"]
[null,null,null,"A5"]
[null,null,null,"A4"]
[null,null,"Podajnik papieru","250 arkuszy"]
[null,null,"Podajnik dokumentów skanera","Tak (ADF)"]
[null,null,"Szybkość druku w mono","min.25 str./min"]
[null,null,"Maksymalny format skanu","A4"]
[null,null,"Druk dwustronny (dupleks)","Automatyczny"]
[null,null,"Interfejsy","USB"]
[null,null,null,"Wi-Fi"]
[null,null,null,"LAN (Ethernet)"]
[null,null,"Wyświetlacz","Wbudowany"]
[null,null,"Dodatkowe informacje","Kabel zasilający, przewód USB ,przewód  ETH, Toner (normalny)"]
[]
[null,null,null,"Głosniki Bluetooth"]
[null,1.17,"Rodzaj zestawu","2.0"]
[null,null,"Rodzaje wyjść / wejść","DC-in (wejście zasilania) - 1 szt."]
[null,null,null,"Wejście liniowe Audio - 1 szt."]
[null,null,"Łączność bezprzewodowa","Bluetooth"]
[null,null,"Waga","poniżj 2,4 kg"]
[null,null,"Kolor","Czarny"]
[]
[null,null,null,"Switch rack zarządzalny"]
[null,"1.18","Typ","zarządzalny (np. TL-SG3428X )"]
[null,null,"Przeznaczenie","do szaf RACK 19\""]
[null,null,"Liczba portów 1 Gbit","24 szt."]
[null,null,"Sloty SFP +","4 szt. "]
[null,null,"Rozmiar tablicy adresów MAC","min. 16k"]
[null,null,"Przepustowość","min. 128 Gb/s"]
[null,null,"Szybkość przekierowań pakietów","min.95 mpps"]
[null,null,"Obsługa VLANów","tak"]
[null,null,"Zarządzalność","tak"]
[]
[null,null,null,"Klawiatura i myszka bezprzewodowa"]
[null,1.19,"Rodzaj przełączników","Membranowe"]
[null,null,"Typ","Multimedialna"]
[null,null,null,"Niskoprofilowa"]
[null,null,"Łączność","Bezprzewodowa"]
[null,null,"Interfejs","2,4 GHz"]
[null,null,null,"Bluetooth"]
[null,null,"Klawisze numeryczne","Tak"]
[null,null,"Klawisze multimedialne / funkcyjne","Tak"]
[null,null,"Mysz w zestawie","Tak"]
[null,null,"Złącza","USB-C"]
[null,null,"Sensor myszy","Optyczny"]
[null,null,"Rozdzielczość myszy","8000 DPI"]
[null,null,"Obudowa","aluminiowa"]
[null,null,"Dodatkowe informacje","Wbudowana bateria"]
[null,null,null,"Kabel do ładowania USB-A -> USB - C"]
[]
[]
[null,null,null,"Pakiet oprogramowania biurowego"]
[null,"1.20","Opis","Rozszerzenie posiadanej i wykorzystywanej przez zamawiającego licencji na pakiet oprogramowania biurowego  \"MS Office Professional Plus 2019 EDU dla szkół i Uczelni lub oprogramowanie równorzędne. Licencja wieczysta (dożywotnia).  \nTenant do office:  officeapsl.onmicrosoft.com\n\nWymogi równorzedności zostały opisane w \"Przypisie 2\""]
[]
[null,null,null,"Słuchawki dokanałowe (douszne)"]
[null,"1.21","Łączność","True Wireless (Bezprzewodowe)"]
[null,null,"Rodzaj łączności","Bluetooth 5.3"]
[null,null,"Budowa słuchawek","Dokanałowe"]
[null,null,"System audio","Stereo 2.0"]
[null,null,"Redukcja hałasu","Aktywna - ANC"]
[null,null,"Średnica membrany","10 mm"]
[null,null,"Wbudowany mikrofon","Posiada, przy słuchawce"]
[null,null,"Złącze","USB typu-C - 1 szt."]
[null,null,"Zasilanie","Wbudowany akumulator 500 mAh (etui)"]
[null,null,null,"Wbudowany akumulator 61 mAh"]
[null,null,"Maksymalny czas pracy","do 8 h"]
[null,null,null,"do 5 h (przy włączonym ANC)"]
[null,null,null,"do 29 h (przy użyciu etui ładującego)"]
[null,null,"Zastosowane technologie","Dolby Atmos"]
[null,null,"Dodatkowe informacje","Dotykowy panel sterowania"]
[null,null,null,"Redukcja szumów otoczenia w mikrofonie"]
[null,null,null,"Wodoszczelność (IPX7)"]
[null,null,null,"Odbieranie połączeń"]
[null,null,null,"Sterowanie muzyką"]
[null,null,null,"Automatyczne włączanie i parowanie"]
[null,null,null,"Etui z możliwością ładowania bezprzewodowego Qi"]
[null,null,null,"Etui ładujące"]
[null,null,null,"Dedykowana aplikacja"]
[null,null,null,"Tryb świadomości otoczenia"]
[null,null,null,"Dźwięk przestrzenny"]
[null,null,null,"Opcja lokalizacji słuchawek"]
[null,null,null,"Regulowana redukcja szumu"]
[null,null,null,"Wbudowane 3 mikrofony"]
[null,null,"Kolor","Czarny"]
[null,null,"Dołączone akcesoria","Etui z funkcją ładowania słuchawek"]
[null,null,"Waga","5,5 g (jedna słuchawka)"]
[null,null,null,"43 g (etui)"]
[]
[null,null,null,"Dysk SSD 1TB"]
[null,1.22,"Pojemność","1000 GB"]
[null,null,"Format","2.5\""]
[null,null,"Interfejs","2,5\" SATA"]
[null,null,"Prędkość odczytu (maksymalna)","min. 550 MB/s"]
[null,null,"Prędkość zapisu (maksymalna)","min. 510 MB/s"]
[null,null,"Rodzaj kości pamięci","TLC"]
[null,null,"Niezawodność MTBF","min.  1 500 000 godz"]
[]
[null,null,null,"Zasilacz ATX"]
[null,1.23,"Moc maksymalna","min 750 W"]
[null,null,"Standard","ATX"]
[null,null,"Złącza (ilość minimalna)","CPU 4+4 (8) pin - 1 szt."]
[null,null,null,"min. PCI-E 2.0 6+2 (8) pin - 2 szt."]
[null,null,null,"min. MOLEX 4-pin - 3 szt."]
[null,null,null,"min. SATA - 6 szt."]
[null,null,null,"min. EPS12V 20+4 (24) pin - 1 szt."]
[null,null,"Certyfikat","80 PLUS Bronze"]
[null,null,"Zabezpieczenia","Przeciwprzeciążeniowe "]
[null,null,null,"Przeciwprzepięciowe "]
[null,null,null,"Przeciwzwarciowe "]
[null,null,null,"Przed prądami udarowymi "]
[null,null,null,"Przed zbyt niskim napięciem"]
[null,null,"Średnica wentylatora","min. 120 mm"]
[]
[null,null,null,"Pamięć DDR5 SODIMM "]
[null,1.24,"Rodzaj pamięci","DDR5 SODIMM"]
[null,null,"Pojemność całkowita","32 GB (2x16 GB)"]
[null,null,"Pojemność kości","16 GB"]
[null,null,"Liczba modułów",2]
[null,null,"Taktowanie","4800 MHz"]
[null,null,"Opóźnienia (cycle latency)","CL 38"]
[null,null,"Timingi","CL38-38-38"]
[null,null,"Napięcie","1,1 V"]
[]
[null,null,null,"Projektor ver. 1"]
[null,1.25,"Technologia wyświetlania","3LCD lub DLP"]
[null,null,"Rozdzielczość natywna","1920 x 1080 (FHD)"]
[null,null,"Rozdzielczość maksymalna","1920 x 1080 (FHD)"]
[null,null,"Jasność","min. 3400 lm"]
[null,null,"Kontrast","16 000:1"]
[null,null,"Wielkość rzutowanego obrazu","30\" - 300\""]
[null,null,"Moc lampy","min.  210 W"]
[null,null,"Złącza","Wejście audio - 1 szt."]
[null,null,null,"Wejście audio L/R (RCA) - 2 szt."]
[null,null,null,"HDMI - 2 szt."]
[null,null,null,"VGA in (D-sub) - 1 szt."]
[null,null,null,"USB "]
[null,null,"Głośniki","Tak"]
[null,null,"Dodatkowe informacje","Możliwość regulacja zniekształcenia trapezowego‎ (Keystone)"]
[null,null,null,"Możliwość zabezpieczenia linką (Kensington Lock)"]
[null,null,"Dołączone akcesoria","Torba na projektor i akcesoria"]
[null,null,null,"Pilot z bateriami"]
[null,null,null,"Kabel zasilający"]
[null,null,null,"Uchwyt sufitowy"]
[null,null,null,"Przewód HDMI"]
[]
[null,null,null,"Dysk SSD 1000 GB (1TB) M.2 "]
[null,1.26,"Pojemność","1000 GB"]
[null,null,"Format","M.2"]
[null,null,"Interfejs","M.2 PCIe NVMe 4.0 x4"]
[null,null,"Prędkość odczytu (maksymalna)","min. 3000 MB/s"]
[null,null,"Prędkość zapisu (maksymalna)","min. 3000 MB/s"]
[null,null,"Odczyt losowy","min.  400,000 IOPS"]
[null,null,"Zapis losowy","min. 400,000 IOPS"]
[null,null,"Rodzaj kości pamięci","TLC"]
[null,null,"Niezawodność MTBF","min.  1 400 000 godz"]
[]
[null,null,null,"Projektor multimedialny ver. 2 krótkoogniskowy"]
[null,"1.27","Technologia wyświetlania","DLP"]
[null,null,"Rozdzielczość natywna","1024 x 768 (XGA)"]
[null,null,"Rozdzielczość maksymalna","WUXGA"]
[null,null,"Parametry wymagane","77-calowy obraz przy instalacji projektora w odległości mniej niż 1 metr od ekranu"]
[null,null,null,"jasność 3300 ANSI lumenów i kontrast 15 000:1"]
[null,null,null,"Rozdzielczość: natywna XGA, maksymalna obsługiwana: WUXGA"]
[null,null,null,"Wyjścia Monitor Out: D-sub 15 pin x 1; Wyjście Audio: Stereo Mini Jack x 1; Głośnik 2W x 1; DC 12V trigger"]
[null,null,null,"Wejścia:  Analog RGB: D-sub 15 pin x 2; LAN networking: RJ-45 x 1; USB type A x 1; USB type mini-B x 1; HDMI v1.3 x 1; S-Video: Mini Din 4 pin x 1; Composite Video: RCA x 1; Microphone: Stereo Mini Jack x 1; Audio L/R: RCA x 2; Stereo Mini Jack x 1"]
[null,null,null,"Wbudowane głośniki o mocy min 10 W"]
[null,null,null,"Jednakowo wysokie natężenie światła białego i barwnego"]
[null,null,null,"żywotność lampy 10 000 godzin (tryb ekonomiczny)/5000 godzin (tryb standardowy)"]
[null,null,null,"poziomej i pionowej korekty geometrii obrazu pozwala na używanie projektora w ustawieniu bocznym i na nierównym podłożu"]
[null,null,null,"Gwarancja producenta 36 miesięcy "]
[null,null,null,"Uchwyt sufitowy"]
[null,null,null,"Zabezpieczenia antykradzieżowe: gniazdo blokady Kensington®, zaczep linki antykradzieżowej,"]
[]
[null,null,null,"Pamięć RAM DDR4"]
[null,1.28,"Przeznaczenie"," do komputerów PC"]
[null,null,"Rodzaj pamięci","DDR4"]
[null,null,"Pojemność całkowita","32 GB (2x16 GB)"]
[null,null,"Pojemność kości","16 GB"]
[null,null,"Liczba modułów",2]
[null,null,"Taktowanie","3200 MHz"]
[null,null,"Opóźnienia (cycle latency)","CL 16"]
[null,null,"Timingi","CL16-20-20"]
[null,null,"Napięcie","1,35 V"]
[null,null,"Chłodzenie","Radiator"]
[]
[null,null,null,"System operacyjny"]
[null,1.29,"System ","Microsoft Windows 11 Pro PL OEM 64-bit z licencją lub równoważny ver. 1  w celu zapewnienia współpracy ze środowiskiem sieciowym oraz aplikacjami funkcjonującymi w środowisku Uczelni. Nie dopuszcza się w tym zakresie licencji pochodzącym z rynku wtórnego  "]
[null,null,"Licencja","Wieczysta"]
[null,null,"Nośnik","USB"]
[null,null,"Wersja językowa ","Polska"]
[null,null,"Rodzaj","BOX"]
[]
[null,null,null,"Ekran ścienny 4:3"]
[null,"1.30","Format","4:3"]
[null,null,"szerokość powierzchni projekcyjnej",200]
[null,null,"wysokość powierzchni projekcyjnej",150]
[null,null,"Ramka"," czarna lewo/prawo/dół"]
[null,null,"Przekątna","100\""]
[null,null,"Przeznaczenie"," Do montażu na ścianach i sufitach "]
[null,null,"informacje dodatkowe","Montaż ekrfanu u zamawiającego w cenie"]
[]
[null,null,null,"Słuchawki przewodowe nauszne z mikrofonem"]
[null,"1.31","Łączność","Przewodowe"]
[null,null,"Budowa słuchawek","Nauszne"]
[null,null,null,"Zamknięte"]
[null,null,"System audio","Stereo 2.0"]
[null,null,"Średnica membrany","50 mm"]
[null,null,"Pasmo przenoszenia słuchawek","20 ~ 20000 Hz"]
[null,null,"Impedancja słuchawek","32 Om"]
[null,null,"Regulacja głośności","Tak"]
[null,null,"Wbudowany mikrofon","Przy słuchawce"]
[null,null,"Pasmo przenoszenia mikrofonu","30 ~ 16000 Hz"]
[null,null,"Połączenie ","Przewodowo – jack 3,5mm"]
[null,null,"Materiał nauszników","Skóra ekologiczna"]
[null,null,"Dodatkowe informacje","Regulowany pałąk"]
[null,null,null,"Miękko wyściełany pałąk"]
[null,null,null,"Elastyczne ramię mikrofonu"]
[null,null,null,"Kabel w oplocie"]
[null,null,"Kolor","Czarno-czerwony"]
[null,null,"Dołączone akcesoria","Adapter z 3,5 mm na 2x 3,5 mm, stojak na słuchawki (przy komputerze)"]
[null,null,"Waga","od 250 g do 360 g."]
[null,null,"Kolor","Czarny (z możliwymi kolorowymi dodatkami np. czerwonymi)"]
[]
[null,null,null,"Switch biurkowy zarządzalny"]
[null,1.32,"Zarządzanie","Zarządzalny L3"]
[null,null,"Architektura sieci","Gigabit Ethernet"]
[null,null,"Całkowita liczba portów",5]
[null,null,"Złącza","RJ-45 10/100/1000 Mbps - 5 szt."]
[null,null,"Power over Ethernet (PoE)","Universal POE (UPOE) do 60W"]
[null,null,"Liczba portów PoE/PoE+",4]
[null,null,"Obsługiwane standardy","IEEE 802.3 az"]
[null,null,"Liczba grup VLAN","min. 32"]
[null,null,"Przepustowość","10 Gb/s"]
[null,null,"Warstwa przełączania",3]
[null,null,"Materiał obudowy","Metal"]
[null,null,"Dołączone akcesoria","Kabel zasilający"]
[]
[null,null,null,"Monitor interaktywny z montażem nasciennym"]
[null,1.33,"Rodzaj:","Monitor interaktywny (dotykowy)"]
[null,null,"Rodzaj panelu:","LED, DLED"]
[null,null,"przekątna:","min. 84 cali"]
[null,null,"Strumieniowanie obrazu do urządzeń mobilnych:","Tak"]
[null,null,"Rozdzielczość:","min 4K (3840 x 2160 px)"]
[null,null,"Format:","16x9"]
[null,null,"Jasność:","min. 350 cd/m2"]
[null,null,"Kąt widzenia:","min. 178"]
[null,null,"Ilość pkt dotyku:","min. 20 pkt"]
[null,null,"Dokładność:","min. 1 mm"]
[null,null,"Głośniki:","min. 2 x 15W"]
[null,null,"Pozycja głośników:","Przód"]
[null,null,"Powierzchnia Antyodblaskowa:","TAK"]
[null,null,"WiFi:","TAK 2.4 Ghz / 5 Ghz"]
[null,null,"Tryb tablicy interaktywnej:","TAK"]
[null,null,"Formaty multimedialne:","min. JPEG. BMP. PNG Video | MPEG1. MPEG2. MPEG4. H.264. H.265. RM. RMVB. MOV. MJPEG. VC1. DivX. FLV (Support 1080P. 4K HD Decoding) Audio| MP3. M4A. (AAC)"]
[null,null,"Wsparcie dla drukarek WIFI:","TAK"]
[null,null,"Wejścia HDMI:","min. 2 szt."]
[null,null,"Wyjścia HDMI:","min. 1 szt. "]
[null,null,"DisplayPort:","Tak"]
[null,null,"Wejścia jack 3.5mm:","Tak"]
[null,null,"LAN:","Tak"]
[null,null,"Sposób montażu:","Ścienny lub na podstawie mobilnej"]
[null,null,"W zestawie:","Kabel USB min. 5M, Pilot, Kabel HDMI (min. 5m),  Piórko, Uchwyt naścienny "]
[null,null,"Uwaga","Wymagany jest montaż przez sprzedającego u zamawiającego"]
[]
[null,null,null,"Telewizor z montażem naściennym"]
[null,"1.34","Typ urządzenia","Telewizor 4K"]
[null,null,"Rozmiar ekranu","75 cali"]
[null,null,"Technologia panelu","LED lub QLED"]
[null,null,"Rozdzielczość ekranu","3840×2160 pikseli"]
[null,null,"Smart TV:","Tak"]
[null,null,"Obsługa HDR","HDR10, HLG"]
[null,null,"Moc dźwięku","ok. 20 W"]
[null,null,"Złącza:","HDMI x3, USB x1"]
[null,null,"Liczba głośników",2]
[null,null,"Funkcje Smart TV","Adaptive Sound Control, Bluetooth Audio, Dźwięk Podążający za Obiektem Lite, eARC, Multiroom Link, Q-Symphony, Sound Mirroring, TV Sound to Mobile"]
[null,null,"Funkcje:","Wi-Fi, DLNA, Bluetooth"]
[null,null,"Kolor obudowy:","Czarny"]
[null,null,"Uchwyt VESA","400×400 mm (dla wersji montowanej na ścianie)"]
[null,null,"Pobór mocy","ok. 129 W"]
[null,null,"Wymiary (SxWxG)","1673x1048x341 mm (z podstawą), 1673x958x60 mm (bez podstawy)"]
[null,null,"Dołączone akcesoria","Pilot"]
[null,null,null,"Baterie do pilota"]
[null,null,null,"Podstawa telewizora"]
[null,null,null,"2 x przewód HDMI min 6 m"]
[null,null,null,"Kabel zasilający"]
[null,null,null,"Uchwyt ścienny"]
[null,null,"Uwaga","Wymagany jest montaż sprzętu przez Sprzedającego u Zamawiającego"]
[]
[null,null,null,"Bezprzewodowy transmiter obrazu "]
[null,"1.35","Opis","Urządzenie do bezprzewodowego prezentowania treści ze smartfona, tabletu lub laptopa  w rozdzielczości 4K na monitorze, telewizorze lub projektorze."]
[null,null,"Obsługiwane standardy","HDMI2.0, kompatybilny z HDCP1.2"]
[null,null,"Rozdzielczość","min. 4K  30Hz"]
[null,null,"Porty","USB Typu C"]
[null,null,null,"USB - zasilanie 5V"]
[null,null,null,"HDMI - 1 szt."]
[null,null,"Zasięg","min.15 m"]
[null,null,"Dodatkowe informacje","Plug&Play"]
[]
[null,null,null,"Switch  zarządzalny ver 2"]
[null,1.36,"Zarządzanie","Zarządzalny L2"]
[null,null,"Dostęp","Przeglądarka WWW (GUI)"]
[null,null,null,"Wiersz poleceń (CLI)"]
[null,null,null,"SNMP v1/v2c/v3"]
[null,null,null,"RMON"]
[null,null,null,"Telnet"]
[null,null,"Architektura sieci","Gigabit Ethernet"]
[null,null,"Całkowita liczba portów",10]
[null,null,"Złącza","RJ-45 10/100/1000 Mbps - 8 szt."]
[null,null,null,"SFP - 2 szt."]
[null,null,"Power over Ethernet (PoE)","PoE 802.3af (PSE) do 15.4W"]
[null,null,"Liczba portów PoE/PoE+",8]
[null,null,"Obsługiwane standardy","IEEE 802.3"]
[null,null,null,"IEEE 802.3 u"]
[null,null,null,"IEEE 802.3 x"]
[null,null,null,"IEEE 802.3 ab"]
[null,null,"Rozmiar tablicy MAC","16 k"]
[null,null,"Liczba grup VLAN",256]
[null,null,"Algorytm przełączania","Store-and-forward"]
[null,null,"Przepustowość","20 Gb/s"]
[null,null,"Bufor pamięci","6 MB"]
[null,null,"Materiał obudowy","Tworzywo sztuczne"]
[null,null,"Maksymalny pobór mocy","60 W"]
[null,null,"Dodatkowe informacje","Automatyczne krosowanie portów (Auto MDI-MDIX)"]
[null,null,null,"Automatyczne rozpoznawanie kabla krosowego (MDI/MDIX)"]
[null,null,null,"Diagnostyka przewodów"]
[null,null,null,"Link Aggregation"]
[null,null,null,"Praca w trybie half i full-duplex"]
[null,null,null,"QoS"]
[null,null,null,"VLAN"]
[null,null,"Wysokość","44 mm"]
[null,null,"Szerokość","280 mm"]
[null,null,"Głębokość","180 mm"]
[null,null,"Waga","1,36 kg"]
[]
[]
[]
[null,null,null,"Dokument należy podpisać kwalifikowanym podpisem elektronicznym zgodnie z zapisami IDW."]
[]
[]
[]
[]
[]
[]
[]
[]
[]
[]
[null,"Przypis 1. Wymagania które musi spełniać system operacyjny ver.1 "]
[null,1,"Dostępne dwa rodzaje graficznego interfejsu użytkownika:"]
[null,null,"a. Klasyczny, umożliwiający obsługę przy pomocy klawiatury i myszy,"]
[null,null,"b. Dotykowy umożliwiający sterowanie dotykiem na urządzeniach typu tablet lub monitorach dotykowych"]
[null,2,"Interfejs użytkownika dostępny w wielu językach do wyboru – w tym polskim i angielskim"]
[null,3,"Możliwość tworzenia pulpitów wirtualnych, przenoszenia aplikacji pomiędzy pulpitami i przełączanie się pomiędzy pulpitami za pomocą skrótów klawiaturowych lub GUI."]
[null,4,"Wbudowane w system operacyjny minimum dwie przeglądarki Internetowe"]
[null,5,"Zintegrowany z systemem moduł wyszukiwania informacji (plików różnego typu, tekstów, metadanych) dostępny z kilku poziomów: poziom menu, poziom otwartego okna systemu operacyjnego; "]
[null,6,"Zlokalizowane w języku polskim, co najmniej następujące elementy: menu, pomoc, komunikaty systemowe, menedżer plików."]
[null,7,"Graficzne środowisko instalacji i konfiguracji dostępne w języku polskim"]
[null,8,"Wbudowany system pomocy w języku polskim."]
[null,9,"Możliwość przystosowania stanowiska dla osób niepełnosprawnych (np. słabo widzących)."]
[null,10,"Możliwość dokonywania aktualizacji i poprawek systemu poprzez mechanizm zarządzany przez administratora systemu Zamawiającego."]
[null,11,"Możliwość dostarczania poprawek do systemu operacyjnego w modelu peer-to-peer."]
[null,12,"Zabezpieczony hasłem hierarchiczny dostęp do systemu, konta i profile użytkowników zarządzane zdalnie; praca systemu w trybie ochrony kont użytkowników."]
[null,13,"Możliwość dołączenia systemu do usługi katalogowej on-premise lub w chmurze."]
[null,14,"Umożliwienie zablokowania urządzenia w ramach danego konta tylko do uruchamiania wybranej aplikacji - tryb \"kiosk\"."]
[null,15,"Zdalna pomoc i współdzielenie aplikacji – możliwość zdalnego przejęcia sesji zalogowanego użytkownika celem rozwiązania problemu z komputerem."]
[null,16,"Transakcyjny system plików pozwalający na stosowanie przydziałów (ang. quota) na dysku dla użytkowników oraz zapewniający większą niezawodność i pozwalający tworzyć kopie zapasowe."]
[null,17,"Oprogramowanie dla tworzenia kopii zapasowych (Backup); automatyczne wykonywanie kopii plików z możliwością automatycznego przywrócenia wersji wcześniejszej."]
[null,18,"Możliwość przywracania obrazu plików systemowych do uprzednio zapisanej postaci."]
[null,19,"Możliwość przywracania systemu operacyjnego do stanu początkowego z pozostawieniem plików użytkownika."]
[null,20,"Możliwość blokowania lub dopuszczania dowolnych urządzeń peryferyjnych za pomocą polityk grupowych (np. przy użyciu numerów identyfikacyjnych sprzętu).\""]
[null,21,"Wbudowany mechanizm wirtualizacji typu hypervisor.\""]
[null,22,"Wbudowana możliwość zdalnego dostępu do systemu i pracy zdalnej z wykorzystaniem pełnego interfejsu graficznego."]
[null,23,"Dostępność bezpłatnych biuletynów bezpieczeństwa związanych z działaniem systemu operacyjnego."]
[null,24,"Wbudowana zapora internetowa (firewall) dla ochrony połączeń internetowych, zintegrowana z systemem konsola do zarządzania ustawieniami zapory i regułami IP v4 i v6."]
[null,25,"Identyfikacja sieci komputerowych, do których jest podłączony system operacyjny, zapamiętywanie ustawień i przypisywanie do min. 3 kategorii bezpieczeństwa \n(z predefiniowanymi odpowiednio do kategorii ustawieniami zapory sieciowej, udostępniania plików itp.)."]
[null,26,"Możliwość zdefiniowania zarządzanych aplikacji w taki sposób aby automatycznie szyfrowały pliki na poziomie systemu plików. Blokowanie bezpośredniego kopiowania treści między aplikacjami zarządzanymi a niezarządzanymi."]
[null,27,"Wbudowany system uwierzytelnienia dwuskładnikowego oparty o certyfikat lub klucz prywatny oraz PIN lub uwierzytelnienie biometryczne."]
[null,28,"Wbudowane mechanizmy ochrony antywirusowej i przeciw złośliwemu oprogramowaniu z zapewnionymi bezpłatnymi aktualizacjami."]
[null,29,"Wbudowany system szyfrowania dysku twardego ze wsparciem modułu TPM"]
[null,30,"Możliwość tworzenia i przechowywania kopii zapasowych kluczy odzyskiwania do szyfrowania dysku w usługach katalogowych."]
[null,31,"Możliwość tworzenia wirtualnych kart inteligentnych."]
[null,32,"Wsparcie dla firmware UEFI i funkcji bezpiecznego rozruchu (Secure Boot)"]
[null,33,"Wbudowany w system, wykorzystywany automatycznie przez wbudowane przeglądarki filtr reputacyjny URL."]
[null,34,"Wsparcie dla IPSEC oparte na politykach – wdrażanie IPSEC oparte na zestawach reguł definiujących ustawienia zarządzanych w sposób centralny."]
[null,35,"Mechanizmy logowania w oparciu o:"]
[null,null,"a. Login i hasło,"]
[null,null,"b. Karty inteligentne i certyfikaty (smartcard),"]
[null,null,"c. Wirtualne karty inteligentne i certyfikaty (logowanie w oparciu o certyfikat chroniony poprzez moduł TPM),"]
[null,null,"d. Certyfikat/Klucz i PIN"]
[null,null,"e. Certyfikat/Klucz i uwierzytelnienie biometryczne"]
[null,36,"Wsparcie dla uwierzytelniania na bazie Kerberos v. 5"]
[null,37,"Wbudowany agent do zbierania danych na temat zagrożeń na stacji roboczej."]
[null,38,"Wsparcie .NET Framework 2.x, 3.x i 4.x – możliwość uruchomienia aplikacji działających we wskazanych środowiskach"]
[null,39,"Wsparcie dla VBScript – możliwość uruchamiania interpretera poleceń"]
[null,40,"Wsparcie dla PowerShell 5.x – możliwość uruchamiania interpretera poleceń"]
[]
[null,"Przypis 2. Wymagania dotyczące \"Pakietu oprogramowania biurowego\"  "]
[null,null,"Rozszerzenie posiadanej i wykorzystywanej przez zamawiającego licencji na pakiet oprogramowania biurowego  \"MS Office Professional Plus 2019 EDU dla szkół i Uczelni\". Licencja wieczysta (dożywotnia).  Tenant do office:  officeapsl.onmicrosoft.com"]
[null,null,"Zamawiający uzna pakiet oprogramowania biurowego za równoważny określonemu w SIWZ, gdy spełni poniższe wymagania:"]
[null,null,"Oprogramowanie biurowe w najnowszej dostępnej na rynku wersji. Zamawiający nie dopuszcza zaoferowania pakietów biurowych, programów i planów licencyjnych opartych o rozwiązania chmury oraz rozwiązań wymagających stałych opłat w okresie używania zakupionego produktu."]
[null,null,"Dla oprogramowania musi być publicznie znany cykl życia przedstawiony przez producenta systemu i dotyczący rozwoju wsparcia technicznego – w szczególności w zakresie bezpieczeństwa. Wymagane jest prawo do instalacji aktualizacji i poprawek do danej wersji oprogramowania, udostępnianych bezpłatnie przez producenta na jego stronie internetowej w okresie co najmniej 5 lat."]
[null,null,"Zamawiający wymaga, aby wszystkie elementy oprogramowania biurowego oraz jego licencja pochodziły od tego samego producenta.  Zawierające w pakiecie przynajmniej edytor tekstu, arkusz kalkulacyjny, program do tworzenia prezentacji. Aplikacja do tworzenia prezentacji powinna umożliwiać udostępnianie prezentacji przy użyciu przeglądarki internetowej bez potrzeby instalowania dodatkowych elementów ani konfigurowania. Do każdej prezentacji można dodać wciągające wideo, aby zwrócić uwagę odbiorców. Nagrania wideo można wstawiać bezpośrednio w programie, a następnie dostosowywać je, przycinać lub oznaczać najważniejsze sceny w nagraniu zakładkami, aby zwrócić na nie szczególną uwagę. Wstawiane nagrania są domyślnie osadzone, dzięki czemu nie trzeba zarządza dodatkowymi plikami wideo. Pliki programów edytora tekstów, arkusza kalkulacyjnego i programu do tworzenia prezentacji można przechowywać online i uzyskiwać do nich dostęp, przeglądać, edytować i udostępniać innym użytkownikom."]
[null,null,"Pakiet biurowy musi spełniać następujące wymagania:"]
[null,1,"Wymagania odnośnie interfejsu użytkownika:"]
[null,null,"a. Pełna polska wersja językowa interfejsu użytkownika"]
[null,null,"b. Prostota i intuicyjność obsługi, pozwalająca na pracę osobom nieposiadającym umiejętności technicznych"]
[null,null,"c. Możliwość zintegrowania uwierzytelniania użytkowników z usługą katalogową (Active Directory lub funkcjonalnie równoważną) – użytkownik raz zalogowany z poziomu   systemu operacyjnego stacji roboczej  ma być automatycznie rozpoznawany we wszystkich modułach oferowanego rozwiązania bez potrzeby oddzielnego monitowania  go o ponowne uwierzytelnienie się."]
[null,2,"Oprogramowanie musi umożliwiać tworzenie i edycję dokumentów elektronicznych w ustalonym formacie, który spełnia następujące warunki:"]
[null,null,"a. posiada kompletny i publicznie dostępny opis formatu,"]
[null,null,"c. umożliwia wykorzystanie schematów XML"]
[null,3,"Oprogramowanie musi umożliwiać dostosowanie dokumentów i szablonów do potrzeb instytucji oraz udostępniać narzędzia umożliwiające dystrybucję odpowiednich szablonów do właściwych odbiorców."]
[null,4,"W skład oprogramowania muszą wchodzić narzędzia programistyczne umożliwiające automatyzację pracy i wymianę danych pomiędzy dokumentami i aplikacjami (język makropoleceń, język skryptowy)"]
[null,5,"Do aplikacji musi być dostępna pełna dokumentacja w języku polskim."]
[null,6,"Pakiet zintegrowanych aplikacji biurowych musi zawierać:"]
[null,null,"a. Edytor tekstów"]
[null,null,"b. Arkusz kalkulacyjny"]
[null,null,"c. Narzędzie do przygotowywania i prowadzenia prezentacji"]
[null,null,"d. Narzędzie do tworzenia drukowanych materiałów informacyjnych"]
[null,null,"e. Narzędzie do zarządzania informacją prywatą (pocztą elektroniczną, kalendarzem, kontaktami i zadaniami),"]
[null,7,"Edytor tekstów musi umożliwiać:"]
[null,null,"a.  Edycję i formatowanie tekstu w języku polskim wraz z obsługą języka polskiego w zakresie sprawdzania pisowni i poprawności gramatycznej oraz funkcjonalnością słownika wyrazów \n     bliskoznacznych i autokorekty"]
[null,null,"b.  Wstawianie oraz formatowanie tabel"]
[null,null,"c.  Wstawianie oraz formatowanie obiektów graficznych"]
[null,null,"d.  Wstawianie wykresów i tabel z arkusza kalkulacyjnego (wliczając tabele przestawne)"]
[null,null,"e.  Automatyczne numerowanie rozdziałów, punktów, akapitów, tabel i rysunków"]
[null,null,"f.   Automatyczne tworzenie spisów treści"]
[null,null,"g.  Formatowanie nagłówków i stopek stron "]
[null,null,"h.  Sprawdzanie pisowni w języku polskim"]
[null,null,"i.   Śledzenie zmian wprowadzonych przez użytkowników"]
[null,null,"j.   Nagrywanie, tworzenie i edycję makr automatyzujących wykonywanie czynności"]
[null,null,"k.  Określenie układu strony (pionowa/pozioma)"]
[null,null,"l.   Wydruk dokumentów"]
[null,null,"m. Wykonywanie korespondencji seryjnej bazując na danych adresowych pochodzących z arkusza kalkulacyjnego i z narzędzia do zarządzania informacją prywatną"]
[null,null,"n.  Pracę na dokumentach utworzonych przy pomocy Microsoft Word 2003 lub Microsoft Word 2007 i 2010 z zapewnieniem bezproblemowej konwersji wszystkich elementów  i atrybutów dokumentu"]
[null,null,"o.  Zabezpieczenie dokumentów hasłem przed odczytem oraz przed wprowadzaniem modyfikacji"]
[null,null,"p.  Wymagana jest dostępność do oferowanego edytora tekstu bezpłatnych narzędzi (kontrolki) umożliwiających podpisanie podpisem elektronicznym pliku z zapisanym \n     dokumentem przy pomocy  certyfikatu kwalifikowanego zgodnie  z wymaganiami obowiązującego w Polsce prawa."]
[null,8,"Arkusz kalkulacyjny musi umożliwiać:"]
[null,null,"a.  Tworzenie raportów tabelarycznych"]
[null,null,"b.  Tworzenie wykresów liniowych (wraz linią trendu), słupkowych, kołowych"]
[null,null,"c.  Tworzenie arkuszy kalkulacyjnych zawierających teksty, dane liczbowe oraz formuły przeprowadzające operacje matematyczne, logiczne, tekstowe, statystyczne oraz \n     operacje na danych finansowych  i na miarach czasu."]
[null,null,"d.  Tworzenie raportów z zewnętrznych źródeł danych (inne arkusze kalkulacyjne, bazy danych zgodne z ODBC, pliki tekstowe, pliki XML, webservice)"]
[null,null,"e.  Obsługę kostek OLAP oraz tworzenie i edycję kwerend bazodanowych i webowych. Narzędzia wspomagające analizę statystyczną i finansową, analizę wariantową  i rozwiązywanie problemów optymalizacyjnych"]
[null,null,"f.   Tworzenie raportów tabeli przestawnych umożliwiających dynamiczną zmianę wymiarów oraz wykresów bazujących na danych z tabeli przestawnych"]
[null,null,"g.  Wyszukiwanie i zamianę danych"]
[null,null,"h.  Wykonywanie analiz danych przy użyciu formatowania warunkowego"]
[null,null,"i.   Nazywanie komórek arkusza i odwoływanie się w formułach po takiej nazwie"]
[null,null,"j.   Nagrywanie, tworzenie i edycję makr automatyzujących wykonywanie czynności"]
[null,null,"k.  Formatowanie czasu, daty i wartości finansowych z polskim formatem"]
[null,null,"l.   Zapis wielu arkuszy kalkulacyjnych w jednym pliku."]
[null,null,"m. Zachowanie pełnej zgodności z formatami plików utworzonych za pomocą oprogramowania Microsoft Excel 2003 oraz Microsoft Excel 2007 i 2010, z uwzględnieniem \n     poprawnej realizacji użytych w nich  funkcji specjalnych i makropoleceń.."]
[null,null,"n.  Zabezpieczenie dokumentów hasłem przed odczytem oraz przed wprowadzaniem modyfikacji"]
[null,9,"Narzędzie do przygotowywania i prowadzenia prezentacji musi umożliwiać:"]
[null,null,"a.  Przygotowywanie prezentacji multimedialnych, które będą:"]
[null,null,"b.  Prezentowanie przy użyciu projektora multimedialnego"]
[null,null,"c.  Drukowanie w formacie umożliwiającym robienie notatek"]
[null,null,"d.  Zapisanie jako prezentacja tylko do odczytu."]
[null,null,"e.  Nagrywanie narracji i dołączanie jej do prezentacji"]
[null,null,"f.   Opatrywanie slajdów notatkami dla prezentera"]
[null,null,"g.  Umieszczanie i formatowanie tekstów, obiektów graficznych, tabel, nagrań dźwiękowych i wideo "]
[null,null,"h.  Umieszczanie tabel i wykresów pochodzących z arkusza kalkulacyjnego"]
[null,null,"i.   Odświeżenie wykresu znajdującego się w prezentacji po zmianie danych w źródłowym arkuszu kalkulacyjnym"]
[null,null,"j.   Możliwość tworzenia animacji obiektów i całych slajdów"]
[null,null,"k.  Prowadzenie prezentacji w trybie prezentera, gdzie slajdy są widoczne na jednym monitorze lub projektorze, a na drugim widoczne są slajdy i notatki prezentera"]
[null,null,"l.   Pełna zgodność z formatami plików utworzonych za pomocą oprogramowania MS PowerPoint 2003, MS PowerPoint 2007 i 2010."]
[null,10,"Narzędzie do tworzenia drukowanych materiałów informacyjnych musi umożliwiać:"]
[null,null,"a.  Tworzenie i edycję drukowanych materiałów informacyjnych"]
[null,null,"b.  Tworzenie materiałów przy użyciu dostępnych z narzędziem szablonów: broszur, biuletynów, katalogów."]
[null,null,"c.  Edycję poszczególnych stron materiałów."]
[null,null,"d.  Podział treści na kolumny."]
[null,null,"e.  Umieszczanie elementów graficznych."]
[null,null,"f.   Wykorzystanie mechanizmu korespondencji seryjnej"]
[null,null,"g.  Płynne przesuwanie elementów po całej stronie publikacji."]
[null,null,"h.  Eksport publikacji do formatu PDF oraz TIFF."]
[null,null,"i.   Wydruk publikacji."]
[null,null,"j.   Możliwość przygotowywania materiałów do wydruku w standardzie CMYK."]
[null,11,"Narzędzie do zarządzania informacją prywatną (pocztą elektroniczną, kalendarzem, kontaktami i zadaniami) musi umożliwiać:"]
[null,null,"a.  Pobieranie i wysyłanie poczty elektronicznej z serwera pocztowego"]
[null,null,"b.  Filtrowanie niechcianej poczty elektronicznej (SPAM) oraz określanie listy zablokowanych i bezpiecznych nadawców"]
[null,null,"c.  Tworzenie katalogów, pozwalających katalogować pocztę elektroniczną"]
[null,null,"d.  Automatyczne grupowanie poczty o tym samym tytule"]
[null,null,"e.  Tworzenie reguł przenoszących automatycznie nową pocztę elektroniczną do określonych katalogów bazując na słowach zawartych w tytule, adresie nadawcy i odbiorcy"]
[null,null,"f.   Oflagowanie poczty elektronicznej z określeniem terminu przypomnienia"]
[null,null,"g.  Zarządzanie kalendarzem"]
[null,null,"h.  Udostępnianie kalendarza innym użytkownikom"]
[null,null,"i.   Przeglądanie kalendarza innych użytkowników"]
[null,null,"j.   Zapraszanie uczestników na spotkanie, co po ich akceptacji powoduje automatyczne wprowadzenie spotkania w ich kalendarzach"]
[null,null,"k.  Zarządzanie listą zadań"]
[null,null,"l.   Zlecanie zadań innym użytkownikom"]
[null,null,"m. Zarządzanie listą kontaktów"]
[null,null,"n.  Udostępnianie listy kontaktów innym użytkownikom"]
[null,null,"o.  Przeglądanie listy kontaktów innych użytkowników"]
[null,null,"p.  Możliwość przesyłania kontaktów innym użytkowników"]
[]
[null,null,"UWAGA."]
[null,null,"Obowiązek wykazania równoważności zaoferowanego pakietu oprogramowania biurowego leży  po stronie Wykonawcy. \nW tym celu Wykonawca winien przedstawić oświadczenie i dokumenty potwierdzające równoważność pakietu oprogramowania biurowego"]

{"sheet":"Część III Oprogramowanie","index":2,"n_rows":122,"n_cols":7,"rows_kept":122,"cut":false,"hidden":false,"merged":[[3,1,118,1],[121,5,121,6]]}
[]
[null,null,"Część III Opis przedmiotu zamówienia"]
[null,null,"Oprogramowanie\ncz. II","Poz. opisu","ILOŚĆ","Opis Zamawiającego","Opis Wykonawcy"]
[null,null,"Program antywirusowy",2.0099999999999998,1,"Program antywirusowy dla 800 stanowisk"]
[null,null,null,null,null,"Administracja zdalna w chmurze\n1. Rozwiązanie musi być dostępne w chmurze producenta oprogramowania antywirusowego.\n2. Rozwiązanie musi umożliwiać dostęp do konsoli centralnego zarządzania z poziomu interfejsu WWW.\n3. Rozwiązanie musi być zabezpieczone za pośrednictwem protokołu SSL.\n4. Rozwiązanie musi posiadać mechanizm wykrywający sklonowane maszyny na podstawie unikatowego identyfikatora sprzętowego stacji.\n5. Rozwiązanie musi posiadać możliwość komunikacji agenta przy wykorzystaniu HTTP Proxy.\n6. Rozwiązanie musi posiadać możliwość zarządzania urządzeniami mobilnymi – MDM.\n7. Rozwiązanie musi posiadać możliwość wymuszenia dwufazowej autoryzacji podczas logowania do konsoli administracyjnej.\n8. Rozwiązanie musi posiadać możliwość dodania zestawu uprawnień dla użytkowników w oparciu co najmniej o funkcje zarządzania: politykami, raportowaniem, zarządzaniem licencjami, zadaniami administracyjnymi. Każda z funkcji musi posiadać możliwość wyboru uprawnienia: odczyt, użyj, zapisz oraz brak.\n9. Rozwiązanie musi posiadać minimum 80 szablonów raportów, przygotowanych przez producenta.\n10. Rozwiązanie musi posiadać możliwość tworzenia grup statycznych i dynamicznych komputerów.\n11. Grupy dynamiczne muszą być tworzone na podstawie szablonu określającego warunki, jakie musi spełnić klient, aby został umieszczony w danej grupie. Warunki muszą zawierać co najmniej: adresy sieciowe IP, aktywne zagrożenia, stan\nfunkcjonowania/ochrony, wersja systemu operacyjnego, podzespoły komputera. \n12. Rozwiązanie musi posiadać możliwość uruchomienia zadań automatycznie, przynajmniej z wyzwalaczem: wyrażenie CRON, codziennie, cotygodniowo, comiesięcznie, corocznie, po wystąpieniu noweg  zdarzenia oraz umieszczeniu agenta w grupie dynamicznej."]
[null,null,null,null,null,"Ochrona stacji roboczych\n1. Rozwiązanie musi wspierać systemy operacyjne Windows (Windows 10/Windows 11).\n2. Rozwiązanie musi wspierać architekturę ARM64.\n3. Rozwiązanie musi zapewniać wykrywanie i usuwanie niebezpiecznych aplikacji typu adware, spyware, dialer, phishing, narzędzi hakerskich, backdoor.\n4. Rozwiązanie musi posiadać wbudowaną technologię do ochrony przed rootkitami oraz podłączeniem komputera do sieci botnet.\n5. Rozwiązanie musi zapewniać wykrywanie potencjalnie niepożądanych, niebezpiecznych oraz podejrzanych aplikacji.\n6. Rozwiązanie musi zapewniać skanowanie w czasie rzeczywistym otwieranych,\nzapisywanych i wykonywanych plików.\n7. Rozwiązanie musi zapewniać skanowanie całego dysku, wybranych katalogów lub pojedynczych plików \"na żądanie\" lub według harmonogramu.\n8. Rozwiązanie musi zapewniać skanowanie plików spakowanych i skompresowanych oraz dysków sieciowych i dysków przenośnych.\n9. Rozwiązanie musi posiadać opcję umieszczenia na liście wykluczeń ze skanowania wybranych plików, katalogów lub plików na podstawie rozszerzenia, nazwy, sumy kontrolnej (SHA1) oraz lokalizacji pliku.\n10. Rozwiązanie musi integrować się z Intel Threat Detection Technology"]
[null,null,null,null,null,"11. Rozwiązanie musi zapewniać skanowanie i oczyszczanie poczty przychodzącej POP3 i IMAP „w locie” (w czasie rzeczywistym), zanim zostanie dostarczona do klienta pocztowego, zainstalowanego na stacji roboczej (niezależnie od konkretnego klienta pocztowego).\n12. Rozwiązanie musi zapewniać skanowanie ruchu sieciowego wewnątrz szyfrowanych protokołów HTTPS, POP3S, IMAPS.\n13. Rozwiązanie musi posiadać wbudowane dwa niezależne moduły heurystyczne – jeden wykorzystujący pasywne metody heurystyczne i drugi wykorzystujący aktywne metody heurystyczne oraz elementy sztucznej inteligencji. Musi istnieć możliwość wyboru, z jaką heurystyka ma odbywać się skanowanie – z użyciem jednej lub obu metod jednocześnie.\n14. Rozwiązanie musi zapewniać blokowanie zewnętrznych nośników danych na stacji w tym przynajmniej: Pamięci masowych, optycznych pamięci masowych, pamięci masowych Firewire, urządzeń do tworzenia obrazów, drukarek USB, urządzeń Bluetooth, czytników kart inteligentnych, modemów, portów LPT/COM oraz urządzeń przenośnych.\n15. Rozwiązanie musi posiadać funkcję blokowania nośników wymiennych, bądź grup urządzeń ma umożliwiać użytkownikowi tworzenie reguł dla podłączanych urządzeń minimum w oparciu o typ, numer seryjny, dostawcę lub model urządzenia.\n16. Moduł HIPS musi posiadać możliwość pracy w jednym z pięciu trybów: • tryb automatyczny z regułami, gdzie program automatycznie tworzy i wykorzystuje reguły wraz z możliwością wykorzystania reguł utworzonych przez użytkownika,\n• tryb interaktywny, w którym to rozwiązanie pyta użytkownika o akcję w przypadku wykrycia aktywności w systemie,\n• tryb oparty na regułach, gdzie zastosowanie mają jedynie reguły utworzone przez użytkownika,\n• tryb uczenia się, w którym rozwiązanie uczy się aktywności systemu i użytkownika oraz tworzy odpowiednie reguły w czasie określonym przez użytkownika. Po wygaśnięciu tego czasu program musi samoczynnie przełączyć się w tryb pracy oparty na regułach,\n• tryb inteligentny, w którym rozwiązanie będzie powiadamiało wyłącznie o szczególnie podejrzanych zdarzeniach.\n17. Rozwiązanie musi być wyposażone we wbudowaną funkcję, która wygeneruje pełny raport na temat stacji, na której zostało zainstalowane, w tym przynajmniej z: zainstalowanych aplikacji, usług systemowych, informacji o systemie operacyjnym i\nsprzęcie, aktywnych procesów i połączeń sieciowych, harmonogramu systemu operacyjnego, pliku hosts, sterowników.\n18. Funkcja, generująca taki log, ma posiadać przynajmniej 9 poziomów filtrowania wyników pod kątem tego, które z nich są podejrzane dla rozwiązania i mogą stanowić zagrożenie bezpieczeństwa.\n19. Rozwiązanie musi posiadać automatyczną, inkrementacyjną aktualizację silnika detekcji. "]
[null,null,null,null,null,"20. Rozwiązanie musi posiadać tylko jeden proces uruchamiany w pamięci, z którego korzystają wszystkie funkcje systemu (antywirus, antyspyware, metody heurystyczne).\n21. Rozwiązanie musi posiadać funkcjonalność skanera UEFI, który chroni użytkownika poprzez wykrywanie i blokowanie zagrożeń, atakujących jeszcze przed uruchomieniem systemu operacyjnego.\n22. Rozwiązanie musi posiadać ochronę antyspamową dla programu pocztowego Microsoft Outlook.\n23. Zapora osobista rozwiązania musi pracować w jednym z czterech trybów:\n• tryb automatyczny – rozwiązanie blokuje cały ruch przychodzący i zezwala tylko na połączenia wychodzące,\n• tryb interaktywny – rozwiązanie pyta się o każde nowo nawiązywane połączenie,\n• tryb oparty na regułach – rozwiązanie blokuje cały ruch przychodzący i wychodzący, zezwalając tylko na połączenia skonfigurowane przez administratora,\n• tryb uczenia się – rozwiązanie automatycznie tworzy nowe reguły zezwalające na połączenia przychodzące i wychodzące.Administrator musi posiadaćmożliwość konfigurowania czasu działania trybu.\n24. Rozwiązanie musi być wyposażona w moduł bezpiecznej przeglądarki.\n25. Przeglądarka musi automatycznie szyfrować wszelkie dane wprowadzane przez Użytkownika.\n26. Praca w bezpiecznej przeglądarce musi być wyróżniona poprzez odpowiedni kolor ramki przeglądarki oraz informację na ramce przeglądarki.\n27. Rozwiązanie musi być wyposażone w zintegrowany moduł kontroli dostępu do stron internetowych.\n28. Rozwiązanie musi posiadać możliwość filtrowania adresów URL w oparciu o co najmniej 140 kategorii i podkategorii.\n29. Rozwiązanie musi zapewniać ochronę przed zagrożeniami 0-day.\n30. W przypadku stacji roboczych rozwiązanie musi posiadać możliwość wstrzymania uruchamiania pobieranych plików za pośrednictwem przeglądarek internetowych, klientów poczty e-mail, z nośników wymiennych oraz wyodrębnionych z archiwum."]
[null,null,null,null,null,"Ochrona serwera\n1. Rozwiązanie musi wspierać systemy Microsoft Windows Server 2012 i nowszych oraz Linux w tym co najmniej: RedHat Enterprise Linux (RHEL) 7,8 i 9, CentOS 7, Ubuntu Server 18.04 LTS i nowsze, Debian 10, Debian 11 i Debian 12, SUSE Linux Enterprise Server (SLES) 15, Oracle Linux 8 oraz Amazon Linux.\n2. Rozwiązanie musi zapewniać ochronę przed wirusami, trojanami, robakami i innymi zagrożeniami.\n3. Rozwiązanie musi zapewniać wykrywanie i usuwanie niebezpiecznych aplikacji typu adware, spyware, dialer, phishing, narzędzi hakerskich, backdoor.\n4. Rozwiązanie musi zapewniać możliwość skanowania dysków sieciowych typu NAS.\n5. Rozwiązanie musi posiadać wbudowane dwa niezależne moduły heurystyczne – jeden wykorzystujący pasywne metody heurystyczne i drugi wykorzystujący aktywne metody heurystyczne oraz elementy sztucznej inteligencji. Rozwiązanie musi istnieć możliwość wyboru, z jaką heurystyka ma odbywać się skanowanie – z użyciem jednej lub obu metod jednocześnie.\n6. Rozwiązanie musi wspierać automatyczną, inkrementacyjną aktualizację silnika detekcji.\n7. Rozwiązanie musi posiadać możliwość wykluczania ze skanowania procesów.\n8. Rozwiązanie musi posiadać możliwość określenia typu podejrzanych plików, jakie będą przesyłane do producenta, w tym co najmniej pliki wykonywalne, archiwa, skrypty, dokumenty."]
[null,null,null,null,null,"Dodatkowe wymagania dla ochrony serwerów Windows:\n9. Rozwiązanie musi posiadać możliwość skanowania plików i folderów, znajdujących się w usłudze chmurowej OneDrive.\n10. Rozwiązanie musi posiadać system zapobiegania włamaniom działający na hoście (HIPS).\n11. Rozwiązanie musi wspierać skanowanie magazynu Hyper-V.\n12. Rozwiązanie musi posiadać funkcjonalność skanera UEFI, który chroni użytkownika poprzez wykrywanie i blokowanie zagrożeń, atakujących jeszcze przed uruchomieniem systemu operacyjnego.\n13. Rozwiązanie musi zapewniać administratorowi blokowanie zewnętrznych nośników danych na stacji w tym przynajmniej: Pamięci masowych, optycznych pamięci masowych, pamięci masowych Firewire, urządzeń do tworzenia obrazów, drukarek USB, urządzeń Bluetooth, czytników kart inteligentnych, modemów, portów LPT/COM oraz urządzeń przenośnych.\n14. Rozwiązanie musi automatyczne wykrywać usługi zainstalowane na serwerze i tworzyć dla nich odpowiednie wyjątki.\n15. Rozwiązanie musi posiadać wbudowany system IDS z detekcją prób ataków, anomalii w pracy sieci oraz wykrywaniem aktywności wirusów sieciowych.\n16. Rozwiązanie musi zapewniać możliwość dodawania wyjątków dla systemu IDS, co najmniej w oparciu o występujący alert, kierunek, aplikacje, czynność oraz adres IP.\n17. Rozwiązanie musi posiadać ochronę przed oprogramowaniem wymuszającym okup za pomocą dedykowanego modułu."]
[null,null,null,null,null,"Dodatkowe wymagania dla ochrony serwerów Linux:\n18. Rozwiązanie musi pozwalać, na uruchomienie lokalnej konsoli administracyjnej, działającej z poziomu przeglądarki internetowej.\n19. Lokalna konsola administracyjna nie może wymagać do swojej pracy, uruchomienia i instalacji dodatkowego rozwiązania w postaci usługi serwera Web.\n20. Rozwiązanie, do celów skanowania plików na macierzach NAS / SAN, musi w pełni wspierać rozwiązanie Dell EMC Isilon.\n21. Rozwiązanie musi działać w architekturze bazującej na technologii mikro-serwisów. Funkcjonalność ta musi zapewniać podwyższony poziom stabilności, w przypadku awarii jednego z komponentów rozwiązania, nie spowoduje to przerwania pracy "]
[null,null,null,null,null,"Szyfrowanie\n1. System szyfrowania danych musi wspierać instalację aplikacji klienckiej w środowisku Microsoft Windows 7/8/8.1/10 32-bit i 64-bit.\n2. System szyfrowania musi wspierać zarządzanie natywnym szyfrowaniem w systemach macOS (FileVault).\n3. Aplikacja musi posiadać autentykacje typu Pre-boot, czyli uwierzytelnienie użytkownika zanim zostanie uruchomiony system operacyjny. Musi istnieć także możliwość całkowitego lub czasowego wyłączenia tego uwierzytelnienia.\n4. Aplikacja musi umożliwiać szyfrowanie danych tylko na komputerach z UEFI. \n\nOchrona urządzeń mobilnych opartych o system Android\n1. Rozwiązanie musi zapewniać skanowanie wszystkich typów plików, zarówno w pamięci wewnętrznej, jak i na karcie SD, bez względu na ich rozszerzenie.\n2. Rozwiązanie musi zapewniać co najmniej 2 poziomy skanowania: inteligentne i dokładne.\n3. Rozwiązanie musi zapewniać automatyczne uruchamianie skanowania, gdy urządzenie jest w trybie bezczynności (w pełni naładowane i podłączone do ładowarki).\n4. Rozwiązanie musi posiadać możliwość skonfigurowania zaufanej karty SIM.\n5. Rozwiązanie musi zapewniać wysłanie na urządzenie komendy z konsoli centralnego zarządzania, która umożliwi:\na. usunięcie zawartości urządzenia,\nb. przywrócenie urządzenie do ustawień fabrycznych,\nc. zablokowania urządzenia,\nd. uruchomienie sygnału dźwiękowego,\ne. lokalizację GPS.\n6. Rozwiązanie musi zapewniać administratorowi podejrzenie listy zainstalowanych aplikacji.\n7. Rozwiązanie musi posiadać blokowanie aplikacji w oparciu o:\na. nazwę aplikacji,\nb. nazwę pakietu,\nc. kategorię sklepu Google Play,\nd. uprawnienia aplikacji,\ne. pochodzenie aplikacji z nieznanego źródła"]
[null,null,null,null,null,"Sandbox w chmurze\n1. Rozwiązanie musi zapewniać ochronę przed zagrożeniami 0-day.\n2. Rozwiązanie musi wykorzystywać do działania chmurę producenta.\n3. Rozwiązanie musi posiadać możliwość określenia jakie pliki mają zostać przesłane do chmury automatycznie, w tym archiwa, skrypty, pliki wykonywalne, możliwy spam, dokumenty oraz inne pliki typu .jar, .reg, .msi.\n4. Administrator musi mieć możliwość zdefiniowania po jakim czasie przesłane pliki muszą zostać usunięte z serwerów producenta.\n5. Administrator musi mieć możliwość zdefiniowania maksymalnego rozmiaru przesyłanych próbek.\n6. Rozwiązanie musi pozwalać na utworzenie listy wykluczeń określonych plików lub folderów z przesyłania.\n7. Po zakończonej analizie pliku, rozwiązanie musi przesyłać wynik analizy do wszystkich wspieranych produktów.\n8. Administrator musi mieć możliwość podejrzenia listy plików, które zostały przesłane do analizy.\n9. Rozwiązanie musi pozwalać na analizowanie plików, bez względu na lokalizacje stacji roboczej. W przypadku wykrycia zagrożenia, całe środowisko jest bezzwłocznie chronione.\n10. Rozwiązanie nie może wymagać instalacji dodatkowego agenta na stacjach roboczych.\n11. Rozwiązanie pozwala na wysłanie dowolnej próbki do analizy przez użytkownika lub administratora, za pomocą wspieranego produktu. Administrator musi móc podejrzeć jakie pliki zostały wysłane do analizy oraz przez kogo.\n12. Przeanalizowane pliki muszą zostać odpowiednio oznaczone. Analiza pliku może zakończyć się z wynikiem:\na) Czysty,\nb) Podejrzany,\nc) Bardzo podejrzany,\nd) Szkodliwy.\n13. W przypadku stacji roboczych rozwiązanie musi posiadać możliwość wstrzymania uruchamiania pobieranych plików za pośrednictwem przeglądarek internetowych, klientów poczty e-mail, z nośników wymiennych oraz wyodrębnionych z archiwum.\n14. W przypadku serwerów pocztowych rozwiązanie musi posiadać możliwość wstrzymania dostarczania wiadomości do momentu zakończenia analizy próbki.\n15. Wykryte zagrożenia muszą być przeniesione w bezpieczny obszar kwarantanny, z której administrator może przywrócić dowolne pliki oraz utworzyć dla niej wyłączenia."]
[null,null,"System monitorowania i zarządzania sieciami IT",2.02,1,"Przedmiotem zamówienia jest zakup i wdrożenie systemu informatycznego (oprogramowania) do monitorowania i zarządzania wszystkimi urządzeniami sieciowymi będących w posiadaniu Zamawiającego"]
[null,null,null,null,null,"Licencja:  wieczysta"]
[null,null,null,null,null,"Rodzaj:  Enterprise"]
[null,null,null,null,null,"Liczba węzłów / inerfejsów:   500/500 nodes/interfaces"]
[null,null,null,null,null,"1.  Wymagania zamawiającego:  "]
[null,null,null,null,null,"1.1.  urządzenia Zamawiającego mogą pochodzić od wielu producentów  "]
[null,null,null,null,null,"1.2.  urządzenia Zamawiającego mogą być monitorowane odpowiadając na zapytanie po protokole SNMP.  "]
[null,null,null,null,null,"1.3.  system musi raportować wszystkie informacje, które posiada,  "]
[null,null,null,null,null,"1.4.  system musi umożliwiać diagnostykę sieci,  "]
[null,null,null,null,null,"1.5.  system musi być skalowalny i zaprojektowany do pracy w rozproszonym środowisku z liczbą do tysiąca urządzeń,  "]
[null,null,null,null,null,"1.6.  dostęp do wszystkich informacji zawartych w systemie musi być możliwy z wykorzystaniem pojedynczego logowania,  "]
[null,null,null,null,null,"2.  Warunki szczegółowe dotyczące funkcjonalności systemu  "]
[null,null,null,null,null,"2.1.  Wszystkie urządzenia sieciowe muszą być monitorowane w zakresie m.in.:  "]
[null,null,null,null,null,"2.1.1.  odczytu konfiguracji z użyciem protokołów Telnet lub SSH wraz z możliwością szybkiego porównywania zmian,  "]
[null,null,null,null,null,"2.1.2.  automatycznego wykrywania zmian w konfiguracji urządzenia w czasie rzeczywistym wraz z jej pobraniem do systemu np. z wykorzystaniem mechanizmu Syslog, SNMP trap, ustawionych zadań, itp.,  "]
[null,null,null,null,null,"2.1.3.  wykonania inwentaryzacji zawierającej dane t.j.:  "]
[null,null,null,null,null,"2.1.3.1. adres IP  "]
[null,null,null,null,null,"2.1.3.2. sprzętowy adres MAC  "]
[null,null,null,null,null,"2.1.3.3. producenta i model urządzenia  "]
[null,null,null,null,null,"2.1.3.4. wersję oprogramowania  "]
[null,null,null,null,null,"2.1.3.5. numer seryjny  "]
[null,null,null,null,null,"2.1.3.6. listę portów lub interfejsów  "]
[null,null,null,null,null,"2.1.3.7. aktywność adresów MAC na portach fizycznych z wykorzystaniem tablic ARP  "]
[null,null,null,null,null,"2.1.3.8. dane z SNMP t.j.:  "]
[null,null,null,null,null,"2.1.3.8.1. location  "]
[null,null,null,null,null,"2.1.3.8.2. contact  "]
[null,null,null,null,null,"2.1.3.9. czas pracy od ostatniego restartu lub włączenia  "]
[null,null,null,null,null,"Dostęp do poszczególnych danych może być z poziomu urządzenia, ale również musi być możliwość wykonania dedykowanego raportu zawierające ww. dane dla grupy urządzeń.  "]
[null,null,null,null,null,"2.1.4.  wykrywania wszystkich urządzeń w podanej adresacji wraz z możliwością pobrania szczegółowej informacji o urządzeniu wg zdefiniowanej w systemie liście z kontami systemowymi, community stringami SNMP itp. Na podstawie zebranych danych system musi potrafić stworzyć:  "]
[null,null,null,null,null,"2.1.4.1. mapy ze wszystkimi połączeniami z prezentacją utylizacji łączy i ich wysycenia,  "]
[null,null,null,null,null,"2.1.4.2. wykaz VLANów wraz z przypisanymi do nich portami,  "]
[null,null,null,null,null,"2.1.4.3. aktualną listę adresów MAC dla urządzeń podłączonych do przełączników,  "]
[null,null,null,null,null,"2.1.4.4. listę używanych adresów IP wraz z podaniem portu na przełączniku,  "]
[null,null,null,null,null,"2.1.4.5. listę podniesionych portów na przełączniku,  "]
[null,null,null,null,null,"2.1.5.  tworzenie niestandardowych szablonów SNMP dla wartości OID, które pozwolą monitorować dowolne parametry i statystyki urządzeń sieciowych,  "]
[null,null,null,null,null,"2.1.6.  tworzenia automatycznej zależności rodzic -> dziecko przy użyciu topologii sieci w warstwach drugiej i"]
[null,null,null,null,null,"trzeciej,  "]
[null,null,null,null,null,"2.1.7.  możliwości monitorowania czujników sprzętowych dostępnych poprzez protokół SNMP,  "]
[null,null,null,null,null,"2.1.8.  zbierania danych z pomocą sysloga z poniższymi funkcjonalnościami. W przypadku, kiedy sam system nie zawiera rozbudowanych mechanizmów do zarządzania logami, musi zostać dostarczone dedykowane narzędzie umiejące zintegrować się z systemem. Jednocześnie wymóg obsługi podstawowych funkcjonalności t.j. przechwytywanie i wyświetlanie komunikatów, podstawowe filtrowanie, etc. musi być realizowane przez sam system.:  "]
[null,null,null,null,null,"2.1.8.1. zbieraniem informacji po protokole UDP,  "]
[null,null,null,null,null,"2.1.8.2. wyświetlaniem logów w postaci linii,  "]
[null,null,null,null,null,"2.1.8.3. w zależności od priorytetu kolorowanie danej linii,  "]
[null,null,null,null,null,"2.1.8.4. prezentacją poprzez stronę www z zadanym parametrem odświeżenia,  "]
[null,null,null,null,null,"2.1.8.5. filtrowaniem logów przed ich wyświetleniem,  "]
[null,null,null,null,null,"2.1.8.6. filtrowaniem informacji po wyświetleniu,  "]
[null,null,null,null,null,"2.1.8.7 wysyłać alarmy po SNMP lub e-mailem,  "]
[null,null,null,null,null,"2.1.8.8 przyjmować alarmy generowane w wyniku przekroczeń progów domyślnych lub spersonalizowanych  "]
[null,null,null,null,null,"2.1.8.9 umożliwiać tworzenie skryptów, wraz ze zmiennymi, realizujących najczęściej wykonywane operacje na urządzeniach,  "]
[null,null,null,null,null,"2.1.8.10 obsługiwać do trzech tysięcy urządzeń,  "]
[null,null,null,null,null,"2.1.8.11 posiadać wbudowaną licencję na 100 sond oraz obsługiwać do 100 dodatkowych sond dla aktywnego monitorowania urządzeń oraz ich elementów typu interfejs,  "]
[null,null,null,null,null,"2.1.8.12 w zakresie obsługi Netflow lub protokołów równoważnych:  "]
[null,null,null,null,null,"2.1.8.13 posiadać możliwość tworzenia warunków/skupisk interfejsów/sieci/adresów IP/grupowanie IP, dla jakich ma być przygotowany widok,  "]
[null,null,null,null,null,"2.1.8.14 posiadać graficzną formę prezentowania ruchu,  "]
[null,null,null,null,null,"2.1.8.15 posiadać możliwość generowania różnego rodzaju raportów zarówno ręcznie jak i automatycznie o zadanej porze z możliwością automatycznego wysyłania do listy adresatów,  "]
[null,null,null,null,null,"2.1.8.16 powinien posiadać tzw. moduł behawioralny potrafiący analizować zbierane dane i wygenerować odpowiednie wnioski, informacje. W przypadku braku musi być możliwość definiowania alertów t.j."]
[null,null,null,null,null,"przekroczenie obciążenia ruchu na zadanym interfejsie.  \n2.1.8.17 umożliwiać dodawanie bazy MIB dla nowych urządzeń.  "]
[null,null,null,null,null,"2.2.1. Tworzenie wzorców dla wybranych parametrów SNMP, które nie są w standardowej konfiguracji zdefiniowane w systemie w zakresie:  "]
[null,null,null,null,null,"2.2.1.1. monitorowania,  \n2.2.1.2. raportowania,  "]
[null,null,null,null,null,"2.2.1.3. wizualizacji.  "]
[null,null,null,null,null,"2.2.2. posiadać centrum kontroli (dashboard) z możliwością dostosowania dla każdego użytkownika,  "]
[null,null,null,null,null,"2.2.3. umożliwiać grupowanie wykresów dostępności oraz wydajności w jednej linii czasu.  "]
[null,null,null,null,null,"2.2.5. możliwością skierowania/eksportowania strumienia syslog do zewnętrznej bazy lub do pliku, dane sysloga w systemie zarządzania muszą być przechowywane w bazie danych  \n2.2.6. logowaniem do pliku z rotacją poprzez swoje mechanizmy lub systemowe.  "]
[null,null,null,null,null,"2.2.7 możliwości weryfikacji poprawności przechowywanych danych do odczytywania informacji z urządzenia t.j.:  "]
[null,null,null,null,null,"2.2.7.1 tzw. community strings SNMP,  "]
[null,null,null,null,null,"2.2.7.3 login i hasło do usługi telnet lub ssh,  "]
[null,null,null,null,null,"2.2.7.4 hasło do trybu enable (uprzywilejowanego).  "]
[null,null,null,null,null,"2.2.7.5 monitorowania stanu portów i interfejsów (t.j. obciążenie, odrzucone pakiety, błędy):  "]
[null,null,null,null,null,"2.2.8.1. Standardowy pomiar parametrów odbywać będzie się w interwałach czasowych co 1 minutę. Na żądanie dla wskazanego urządzenia/Interfejsu Zamawiający będzie miał możliwość ustawienia krótszych interwałów czasowych co 10 sekund lub 30 sekund. Zmiana nie może wpływać na standardowe pomiary.  "]
[null,null,null,null,null,"2.2.8.2. W przypadku analizy pojedynczego urządzenia, Zamawiający będzie miał możliwość monitorowania parametrów w czasie rzeczywistym,  "]
[null,null,null,null,null,"2.2.8.3. przechowywanie danych i agregacja:  "]
[null,null,null,null,null,"2.2.8.3.1. dla pomiarów minutowych przechowywanie przez okres minimum 2 tygodni,  "]
[null,null,null,null,null,"2.2.8.3.2. uśrednione dane godzinowe przechowywanie przez okres minimum 2 miesięcy,  "]
[null,null,null,null,null,"2.2.8.3.3. uśrednione dane dzienne przechowywanie przez okres minimum 1 roku.  "]
[null,null,null,null,null,"W przypadku, kiedy nie ma takiej możliwości muszą zostać zastosowane inne automatyczne mechanizmy zapobiegające zbyt dużemu rozrostowi bazy danych.  "]
[null,null,null,null,null,"2.3.1. monitorowania restartów portów tzn. zmiany statusu UP/DOWN więcej niż np. sześć razy w zadanym okresie czasu. Może być to zrealizowane poprzez stworzenie dedykowanego raportu. Jako wynik powinno uzyskać się listę przełączników z wykazem portów oraz ilością zmiany statusu,  "]
[null,null,null,null,null,"2.3.2. monitorowania ścieżek sieciowych hop-by-hop z separacją czasu opóźnienia i utraconych pakietów oraz z możliwością zdefiniowania punktu początkowego oraz końcowego,  "]
[null,null,null,null,null,"2.3.3. możliwości tworzenia złożonych alertów z zależnościami logicznymi, które mogą wziąć pod uwagę co najmniej dwa urządzenia oraz co najmniej dwa parametry,  "]
[null,null,null,null,null,"2.3.4. definiowania statycznych oraz dynamicznych progów dla monitorowanych parametrów,  "]
[null,null,null,null,null,"2.3.5. możliwości monitorowania niestandardowych parametrów SNMP i tworzenia szablonów,  "]
[null,null,null,null,null,"2.3.6. tworzenia trendów dla monitorowanych parametrów, zarówno uśrednionych jak i szczytowych.  "]
[null,null,null,null,null,"2.4. Dodatkowo system musi: \n2.4.1. dostarczać niezbędnych informacji do diagnozowania spadku wydajności aplikacji od strony sieci np. pokazanie na dedykowanej mapie całej ścieżki sieciowej od komputera do serwera i wyświetlenie obciążenia interfejsów przez które przechodzi ruch lub generowanych opóźnień pakietów na poszczególnych urządzeniach/routerach,  "]
[null,null,null,null,null,"2.4.2. posiadać wbudowany klient SSH w celu logowania się do monitorowanych urządzeń sieciowych,  "]
[null,null,null,null,null,"2.4.3. umożliwiać automatyczne i ręczne tworzenie map. Dla map tworzonych ręcznie musi istnieć możliwość tworzenia wielu poziomów z możliwością szybkiego przemieszczania się od poziomu ogólnego do szczegółowego. Utworzone mapy muszą zapewniać możliwość ręcznej zmiany położenia obiektów wraz z ich zapisaniem,  "]
[null,null,null,null,null,"2.4.4. mieć możliwość automatycznego odświeżania danych wyświetlanych w mapach,  "]
[null,null,null,null,null,"2.4.5. umożliwiać przypisywanie typu do obiektów rozmieszonych na mapach np. router, przełącznik, access point itp indywidualnie jak i dla zaznaczonej grupy urządzeń,  "]
[null,null,null,null,null,"2.4.6. posiadać możliwość obsługi kontekstowego menu na obiekcie urządzenia umożliwiając np. połączenie się z urządzeniem z poziomu wyświetlonej mapy lub przejście do widoku z szczegółowymi informacjami o urządzeniu,  "]
[null,null,null,null,null,"2.4.7. z chwilą dodania urządzenia do systemu automatycznie zbierać dane t.j. obciążenie interfejsów, zapisywać konfigurację bez dodatkowej interwencji administratora,  "]
[null,null,null,null,null,"2.4.8. umożliwiać ręczne dodawanie urządzeń lub wg harmonogramu z przygotowanej listy,  "]
[null,null,null,null,null,"2.4.9. posiadać możliwość monitorowania dostępności adresu IP urządzenia lub komputera z dokładnością do"]
[null,null,null,null,null,"10 sekund wraz z prezentacją zebranych danych. Opisany pomiar byłby jednostkowy i nie zmieniałby standardowego monitorowania,  "]
[null,null,null,null,null,"2.5.1. obsługiwać SNMPv2, SNMPv3, IPFIX, NetFlow w wersjach 5, 9 wraz z protokołami równoważnymi t.j."]
[null,null,null,null,null,"sFlow, NBAR,  "]
[null,null,null,null,null,"2.5.2. obsługiwać trapy SNMP,  "]
[null,null,null,null,null,"2.5.2.1 eksportować wskazane przez użytkownika dane do innych systemów np. w formacie csv lub xml,  "]
[null,null,null,null,null,"2.5.2.2 umożliwiać eksportowanie zdarzeń do zewnętrznego SIEM, np. ArcSight poprzez strumieniowanie wyfiltrowanych informacji do zewnętrznego serwera syslog,  "]
[null,null,null,null,null,"2.5.2.3 grupować urządzenia np. wg modeli, lokalizacji. Umożliwiać stworzenie hierarchicznej struktury np."]
[null,null,null,null,null,"(Polska -> Województwo -> Miasto -> Ulica) z możliwością jej filtrowania po adresie IP urządzenia, mieście, ulicy. W trakcie operacji wyszukiwania urządzeń musi być możliwość automatycznego przypisywania urządzeń do danej grupy np. na podstawie adresacji IP lub określonego wpisu SNMP.  "]
[null,null,null,null,null,"2.5.2.4 musi być bezproblemowo obsługiwany przez aktualne wersje przeglądarek Microsoft Edge, Google Chrome oraz Mozilla Firefox.  "]
[null,null,null,null,null,"3.   Warunki szczegółowe dotyczące sprzętu, oprogramowania systemowego i bazodanowego oraz architektury  "]
[null,null,null,null,null,"3.1. Platforma sprzętowa wraz z systemem operacyjnym, platformą bazodanową oraz innym niezbędnym oprogramowaniem będzie dostarczona przez Zamawiającego.  "]
[null,null,null,null,null,"3.2. System musi posiadac zintegrowaną bazę danych i nie może w przyszłości wymagać zakupu odrębnych licencji na bazę danych.  "]
[null,null,null,null,null,"3.3. Jeżeli system wspiera platformę wirtualną musi zostać na niej zainstalowany. Platforma musi być zgodna z posiadaną przez Zamawiającego.  "]
[null,null,null,null,null,"3.4. System musi być  kompatybilny z co najmniej platformami wirtualizacji takimi jak; Vmware, Microsoft"]
[null,null,null,null,null,"Hyper-V oraz Open Virt. Musi wspierać technologie High Availability zapewniana przez wymienione platformy wirtualizacji.  "]
[]
[]
[]
[]
[null,null,null,null,null,"Dokument należy podpisać kwalifikowanym podpisem elektronicznym zgodnie z zapisami IDW."]

{"sheet":"Zał. 2 Formularz asort. ilość1","index":3,"n_rows":41,"n_cols":12,"rows_kept":41,"cut":false,"hidden":false,"merged":[[3,1,38,1],[40,3,40,9]]}
[null,null,null,"Załącznik nr 2. Formularz asortymentowo- ilościowy część 1"]
[]
[null,null,null,null,null,"ILOŚĆ","Zamawiający wymaga podania: nazwy oferowanego produktu oraz nazwy producenta i roku produkcji","Zamawiający wymaga podania \nnr katalogowego oferowanego produktu","CENA JEDN. \nNETTO","WARTOŚĆ\nNETTO","STAWKA VAT %","CENA \n(WARTOŚĆ\nBRUTTO)"]
[null,"Ogólnouczelniane  cz. I",1,{"$f":"Ogólnouczelniane!C4","v":"Komputer stacjonarny ver. 1"},{"$f":"Ogólnouczelniane!D4","v":"1.01"},{"$f":"Ogólnouczelniane!Y4","v":56}]
[null,null,2,{"$f":"Ogólnouczelniane!C5","v":"Komputer stacjonarny ver. 2"},{"$f":"Ogólnouczelniane!D5","v":"1.02"},{"$f":"Ogólnouczelniane!Y5","v":11}]
[null,null,3,{"$f":"Ogólnouczelniane!C6","v":"Komputer stacjonarny ver. 3"},{"$f":"Ogólnouczelniane!D6","v":1.03},{"$f":"Ogólnouczelniane!Y6","v":4}]
[null,null,4,{"$f":"Ogólnouczelniane!C7","v":"Monitor ver. 1"},{"$f":"Ogólnouczelniane!D7","v":1.04},{"$f":"Ogólnouczelniane!Y7","v":64}]
[null,null,5,{"$f":"Ogólnouczelniane!C8","v":"Monitor ver. 2"},{"$f":"Ogólnouczelniane!D8","v":1.05},{"$f":"Ogólnouczelniane!Y8","v":6}]
[null,null,6,{"$f":"Ogólnouczelniane!C9","v":"Laptop ver. 1"},{"$f":"Ogólnouczelniane!D9","v":1.06},{"$f":"Ogólnouczelniane!Y9","v":3}]
[null,null,7,{"$f":"Ogólnouczelniane!C10","v":"Laptop ver. 2"},{"$f":"Ogólnouczelniane!D10","v":1.07},{"$f":"Ogólnouczelniane!Y10","v":8}]
[null,null,8,{"$f":"Ogólnouczelniane!C11","v":"Laptop ver. 3"},{"$f":"Ogólnouczelniane!D11","v":1.08},{"$f":"Ogólnouczelniane!Y11","v":6}]
[null,null,9,{"$f":"Ogólnouczelniane!C12","v":"Zestaw przejściówek sygnałowych wideo"},{"$f":"Ogólnouczelniane!D12","v":"1.09"},{"$f":"Ogólnouczelniane!Y12","v":1}]
[null,null,10,{"$f":"Ogólnouczelniane!C13","v":"Głośniki do komputera "},{"$f":"Ogólnouczelniane!D13","v":"1.10"},{"$f":"Ogólnouczelniane!Y13","v":2}]
[null,null,11,{"$f":"Ogólnouczelniane!C14","v":"Zewnętrzny dysk twardy"},{"$f":"Ogólnouczelniane!D14","v":"1.11"},{"$f":"Ogólnouczelniane!Y14","v":1}]
[null,null,12,{"$f":"Ogólnouczelniane!C15","v":"Urządzenie wielofunkcyjne atramentowe"},{"$f":"Ogólnouczelniane!D15","v":1.1200000000000001},{"$f":"Ogólnouczelniane!Y15","v":1}]
[null,null,13,{"$f":"Ogólnouczelniane!C16","v":"Pióro (rysik) do Surface 9 Pro"},{"$f":"Ogólnouczelniane!D16","v":1.1299999999999999},{"$f":"Ogólnouczelniane!Y16","v":3}]
[null,null,14,{"$f":"Ogólnouczelniane!C17","v":"Zewnętrzny dysk SSD"},{"$f":"Ogólnouczelniane!D17","v":1.1399999999999999},{"$f":"Ogólnouczelniane!Y17","v":4}]
[null,null,15,{"$f":"Ogólnouczelniane!C18","v":"Kamera internetowa USB z mikrofonem "},{"$f":"Ogólnouczelniane!D18","v":1.1499999999999999},{"$f":"Ogólnouczelniane!Y18","v":16}]
[null,null,16,{"$f":"Ogólnouczelniane!C19","v":"Urządzenie wielofunkcyjne laserowe"},{"$f":"Ogólnouczelniane!D19","v":1.1599999999999999},{"$f":"Ogólnouczelniane!Y19","v":8}]
[null,null,17,{"$f":"Ogólnouczelniane!C20","v":"Głosniki Bluetooth"},{"$f":"Ogólnouczelniane!D20","v":1.17},{"$f":"Ogólnouczelniane!Y20","v":16}]
[null,null,18,{"$f":"Ogólnouczelniane!C21","v":"Switch rack zarządzalny"},{"$f":"Ogólnouczelniane!D21","v":"1.18"},{"$f":"Ogólnouczelniane!Y21","v":4}]
[null,null,19,{"$f":"Ogólnouczelniane!C22","v":"Klawiatura i myszka bezprzewodowa"},{"$f":"Ogólnouczelniane!D22","v":1.19},{"$f":"Ogólnouczelniane!Y22","v":5}]
[null,null,20,{"$f":"Ogólnouczelniane!C23","v":"Pakiet oprogramowania biurowego"},{"$f":"Ogólnouczelniane!D23","v":"1.20"},{"$f":"Ogólnouczelniane!Y23","v":2}]
[null,null,21,{"$f":"Ogólnouczelniane!C24","v":"Słuchawki dokanałowe (douszne)"},{"$f":"Ogólnouczelniane!D24","v":"1.21"},{"$f":"Ogólnouczelniane!Y24","v":4}]
[null,null,22,{"$f":"Ogólnouczelniane!C25","v":"Dysk SSD 1TB"},{"$f":"Ogólnouczelniane!D25","v":1.22},{"$f":"Ogólnouczelniane!Y25","v":10}]
[null,null,23,{"$f":"Ogólnouczelniane!C26","v":"Zasilacz ATX"},{"$f":"Ogólnouczelniane!D26","v":1.23},{"$f":"Ogólnouczelniane!Y26","v":4}]
[null,null,24,{"$f":"Ogólnouczelniane!C27","v":"Pamięć DDR5 SODIMM "},{"$f":"Ogólnouczelniane!D27","v":1.24},{"$f":"Ogólnouczelniane!Y27","v":4}]
[null,null,25,{"$f":"Ogólnouczelniane!C28","v":"Projektor ver. 1"},{"$f":"Ogólnouczelniane!D28","v":1.25},{"$f":"Ogólnouczelniane!Y28","v":8}]
[null,null,26,{"$f":"Ogólnouczelniane!C29","v":"Dysk SSD 1000 GB (1TB) M.2 "},{"$f":"Ogólnouczelniane!D29","v":1.26},{"$f":"Ogólnouczelniane!Y29","v":4}]
[null,null,27,{"$f":"Ogólnouczelniane!C30","v":"Projektor multimedialny ver. 2 krótkoogniskowy"},{"$f":"Ogólnouczelniane!D30","v":"1.27"},{"$f":"Ogólnouczelniane!Y30","v":4}]
[null,null,28,{"$f":"Ogólnouczelniane!C31","v":"Pamięć RAM DDR4"},{"$f":"Ogólnouczelniane!D31","v":1.28},{"$f":"Ogólnouczelniane!Y31","v":4}]
[null,null,29,{"$f":"Ogólnouczelniane!C32","v":"System operacyjny"},{"$f":"Ogólnouczelniane!D32","v":1.29},{"$f":"Ogólnouczelniane!Y32","v":4}]
[null,null,30,{"$f":"Ogólnouczelniane!C33","v":"Ekran ścienny 4:3"},{"$f":"Ogólnouczelniane!D33","v":"1.30"},{"$f":"Ogólnouczelniane!Y33","v":5}]
[null,null,31,{"$f":"Ogólnouczelniane!C34","v":"Słuchawki przewodowe nauszne z mikrofonem"},{"$f":"Ogólnouczelniane!D34","v":"1.31"},{"$f":"Ogólnouczelniane!Y34","v":36}]
[null,null,32,{"$f":"Ogólnouczelniane!C35","v":"Switch biurkowy zarządzalny"},{"$f":"Ogólnouczelniane!D35","v":1.32},{"$f":"Ogólnouczelniane!Y35","v":8}]
[null,null,33,{"$f":"Ogólnouczelniane!C36","v":"Monitor interaktywny z montażem nasciennym"},{"$f":"Ogólnouczelniane!D36","v":1.33},{"$f":"Ogólnouczelniane!Y36","v":1}]
[null,null,34,{"$f":"Ogólnouczelniane!C37","v":"Telewizor z montażem naściennym"},{"$f":"Ogólnouczelniane!D37","v":"1.34"},{"$f":"Ogólnouczelniane!Y37","v":1}]
[null,null,35,{"$f":"Ogólnouczelniane!C38","v":"Bezprzewodowy transmiter obrazu "},{"$f":"Ogólnouczelniane!D38","v":"1.35"},{"$f":"Ogólnouczelniane!Y38","v":4}]
[null,null,36,{"$f":"Ogólnouczelniane!C39","v":"Switch  zarządzalny ver 2"},{"$f":"Ogólnouczelniane!D39","v":1.36},{"$f":"Ogólnouczelniane!Y39","v":1}]
[]
[null,null,null,"Dokument należy podpisać kwalifikowanym podpisem elektronicznym zgodnie z zapisami IDW."]

{"sheet":"Zał. 2 Formularz asort. ilość2","index":4,"n_rows":7,"n_cols":12,"rows_kept":7,"cut":false,"hidden":false,"merged":[[3,1,4,1],[6,3,6,8]]}
[null,null,null,"ZAŁĄCZNIK  2. Formularz asortymentowo- ilościowy część 2"]
[]
[null,null,null,null,null,"ILOŚĆ","Zamawiający wymaga podania: nazwy oferowanego produktu oraz nazwy producenta i roku produkcji","Zamawiający wymaga podania \nnr katalogowego oferowanego produktu","CENA JEDN. \nNETTO","WARTOŚĆ\nNETTO","STAWKA VAT %","CENA\n (WARTOŚĆ\nBRUTTO)"]
[null,"Oporog.  cz. II",1,{"$f":"'Część III Oprogramowanie'!C4","v":"Program antywirusowy"},{"$f":"'Część III Oprogramowanie'!D4","v":2.0099999999999998},{"$f":"'Część III Oprogramowanie'!E4","v":1}]
[null,null,2,{"$f":"'Część III Oprogramowanie'!C14","v":"System monitorowania i zarządzania sieciami IT"},{"$f":"'Część III Oprogramowanie'!D14","v":2.02},{"$f":"'Część III Oprogramowanie'!E14","v":1}]
[]
[null,null,null,"Dokument należy podpisać kwalifikowanym podpisem elektronicznym zgodnie z zapisami IDW."]